Workbook

Sheet listbox
A1: سال | B1: cell link | C1: ماه | D1: cell link | E1: نوع قرارداد | F1: محل خدمت | G1: واحد عملیاتی | H1: واحد شغلی | I1: سمت شغلی | J1: مرکز هزینه
A2: 1401 | B2: 1 | C2: فروردین | D2: 1 | E2: قراردادی | F2: بندرعباس | G2: واحد اداری و تشکیلاتی | H2: واحد مدیریت | I2: مدیرعامل | J2: حراست (کارخانه)
A3: 1402 | B3: =INDEX(A2:A13,B2) -> 1401 | C3: اردیبهشت | D3: =INDEX(C2:C13,D2) -> فروردین | E3: روزمزدی | F3: تهران | G3: واحد پشتیبانی | H3: واحد مالی | I3: قائم مقام مدیرعامل | J3: آشپزخانه (کارخانه)
A4: 1403 | C4: خرداد | E4: پیمانکاری | G4: واحد عملیاتی | H4: واحد اداری | I4: رئیس هیئت مدیره | J4: مهمانسرای شهر بندرعباس (کارخانه)
A5: 1404 | C5: تیر | H5: واحد حمل و نقل | I5: نائب رئیس هیئت مدیره | J5: مهمانسرای مدیریت کارخانه بندرعباس (کارخانه)
A6: 1405 | C6: مرداد | H6: واحد تولید | I6: عضو هیئت مدیره | J6: تدارکات (کارخانه)
A7: 1406 | C7: شهریور | H7: واحد حراست | I7: مدیر پروژه | J7: انبار (کارخانه)
A8: 1407 | C8: مهر | H8: واحد انبار | I8: مدیریت کارخانه | J8: تاسیسات (کارخانه)
A9: 1408 | C9: آبان | H9: واحد آشپزخانه و رستوران | I9: معاونت کارخانه | J9: مهمانسرای کارگری کارخانه (کارخانه)
A10: 1409 | C10: آذر | H10: واحد تاسیسات | I10: انجام امور محوله از سوی کارفرما | J10: فنی تولید (کارخانه)
A11: 1410 | C11: دی | H11: واحد تعمیر و نگهداری PM | I11: کمک حسابدار | J11: تعمیر و نگهداری(کارخانه)
A12: 1411 | C12: بهمن | H12: واحد بازرگانی | I12: حسابدار حقوق و دستمزد | J12: QC و کنترل کیفیت(کارخانه)
A13: 1412 | C13: اسفند | H13: واحد تدارکات | I13: حسابدار فروش | J13: خدمات عمومی تولید (کارخانه)
H14: واحد فنی و مهندسی و برنامه ریزی | I14: حسابدار خرید | J14: حمل مواد اولیه (کارخانه)
H15: واحد کنترل کیفیت QC | I15: حسابدار اموال | J15: حمل محصولات و سایر(کارخانه)
H16: واحد نصب | I16: حسابدار انبار | J16: قالب سازی(کارخانه)
I17: حسابدار خزانه | J17: بتن سازی(کارخانه)
I18: حسابدار مالی | J18: بتن ریزی(کارخانه)
I19: حسابدار ارشد | J19: آرماتور، میلگرد (کارخانه)
I20: مسئول حسابداری | J20: کیورینگ(کارخانه)
I21: سرپرست حسابداری | J21: مدیریت(کارخانه)
I22: مدیر امور مالی | J22: اداری(کارخانه)
I23: مشاور قانون کار و بیمه | J23: مالی (کارخانه)
I24: مشاور مالی و مالیاتی | J24: آشپزخانه(دفتر مرکزی)
I25: حسابدار مدیریت | J25: تدارکات(دفتر مرکزی)
I26: منشی | J26: بازرگانی(دفتر مرکزی)
I27: مسئول اداری | J27: فنی(دفتر مرکزی)
I28: مسئول دفتر | J28: مدیریت عامل(دفتر مرکزی)
I29: کارمند اداری | J29: هیئت مدیره(دفترمرکزی)
I30: کارپرداز | J30: مالی (دفتر مرکزی)
I31: مسئول روابط عمومی | J31: اداری (دفتر مرکزی)
I32: مسئول IT | J32: توزیع و فروش
I33: راننده تریلی
I34: راننده لودر
I35: راننده جرثقیل
I36: راننده لیفتراک
I37: راننده تراکتور
I38: راننده آکتروس
I39: راننده دانگ فنگ
I40: کارگر تولید
I41: آرماتوربند
I42: مسئول تولید
I43: اپراتور بچینگ
I44: راننده کمک میکسر
I45: راننده میکسر
I46: اپراتور تاورکرین
I47: نگهبان
I48: سرپرست نگهبان
I49: کمک انباردار
I50: کارگر انبار
I51: سرپرست انبار
I52: مدیر انبار
I53: آشپز
I54: سر آشپز
I55: مسئول تاسیسات
I56: سرویس کار ماشین آلات و تجهیزات
I57: مسئول بازرگانی
I58: مسئول خرید
I59: کارمند واحد فنی
I60: کارشناس فنی
I61: مدیر فنی
I62: کارشناس برنامه ریزی
I63: سرپرست برنامه ریزی
I64: سرپرست طرح و توسعه
I65: مهندس طراح
I66: مهندس محاسبات
I67: مهندس نقشه کش
I68: مهندس اجرائی کارگاه
I69: تکنسین اجرائی کارگاه
I70: مهندس کارگاه
I71: سرپرست کارگاه
I72: کارمند آزمایشگاه
I73: مدیر آزمایشگاه
I74: کارگر نصب
I75: مسئول نصب

Sheet database
A1: سال | B1: ماه | C1: کد پرسنلی | D1: نام و نام خانوادگی | E1: نوع قرارداد | F1: محل خدمت | G1: واحد عملیاتی | H1: واحد شغلی | I1: سمت شغلی | J1: مرکز هزینه | K1: کارکرد (ساعت) | L1: اضافه کاری (ساعت) | M1: مبلغ اضافه کاری | N1: جمعه کاری + تعطیل کاری (ساعت) | O1: مبلغ جمعه کاری + تعطیل کاری | P1: شب کاری (ساعت) | Q1: مبلغ شب کاری | R1: ماموریت (روزانه) | S1: مبلغ حق ماموریت | T1: جمع حقوق و مزایا | U1: مالیات | V1: بیمه | W1: حقوق پرداختنی (خالص)
A2: 1401 | B2: فروردین | C2: 3040200007 | D2: حمیدرضا حمیدی زاده | E2: قراردادی | F2: بندرعباس | G2: واحد اداری و تشکیلاتی | H2: واحد اداری | I2: مسئول خرید | J2: اداری(کارخانه) | M2: 23,444,591 | N2: 13.75 | O2: 3,313,636 | T2: 125,458,227 | U2: 5,009,323 | V2: 18,707,145 | W2: 116,083,903
A3: 1401 | B3: فروردین | C3: 3040200009 | D3: حیدر محبوبی شمیلی | E3: قراردادی | F3: بندرعباس | G3: واحد عملیاتی | H3: واحد تولید | I3: اپراتور بچینگ | J3: بتن سازی(کارخانه) | M3: 11,667,270 | N3: 45.48 | O3: 0 | T3: 93,230,837 | U3: 914,879 | V3: 20,239,497 | W3: 87,593,409
A4: 1401 | B4: فروردین | C4: 3040200012 | D4: مهران حاجی زاده | E4: قراردادی | F4: بندرعباس | G4: واحد پشتیبانی | H4: واحد فنی و مهندسی و برنامه ریزی | I4: مدیر فنی | J4: فنی تولید (کارخانه) | M4: 18,648,570 | N4: 27.40 | O4: 0 | T4: 152,525,315 | U4: 6,744,804 | V4: 24,504,771 | W4: 140,062,731
A5: 1401 | B5: فروردین | C5: 3040200014 | D5: فتحعلی شفیعی زاده | E5: قراردادی | F5: بندرعباس | G5: واحد پشتیبانی | H5: واحد حراست | I5: سرپرست نگهبان | J5: حراست (کارخانه) | L5: 155.86 | M5: 49,906,441 | N5: 82.28 | O5: 18,505,269 | P5: 104.00 | Q5: 7,631,119 | T5: 151,394,558 | U5: 6,767,006 | V5: 18,707,145 | W5: 140,262,551
A6: 1401 | B6: فروردین | C6: 3040200015 | D6: حسین قنبری | E6: قراردادی | F6: بندرعباس | G6: واحد عملیاتی | H6: واحد حمل و نقل | I6: راننده دانگ فنگ | J6: حمل مواد اولیه (کارخانه) | L6: 5.18 | M6: 2,396,036 | O6: 0 | T6: 100,817,386 | U6: 1,738,453 | V6: 17,457,225 | W6: 95,005,580
A7: 1401 | B7: فروردین | C7: 3040200017 | D7: سعید دامچین | E7: قراردادی | F7: بندرعباس | G7: واحد عملیاتی | H7: واحد تولید | I7: مسئول تولید | J7: بتن ریزی(کارخانه) | L7: 55.51 | M7: 25,019,936 | N7: 8.16 | O7: 1,051,573 | T7: 118,432,184 | U7: 3,902,718 | V7: 18,108,225 | W7: 110,304,213
A8: 1401 | B8: فروردین | C8: 3040200019 | D8: اسداله پدرام | E8: قراردادی | F8: بندرعباس | G8: واحد عملیاتی | H8: واحد تولید | I8: کارگر تولید | J8: آرماتور، میلگرد (کارخانه) | L8: 21.17 | M8: 6,939,191 | O8: 0 | T8: 83,241,172 | V8: 18,707,145 | W8: 78,876,171
A9: 1401 | B9: فروردین | C9: 3040200020 | D9: علیرضا ادیب نیا | E9: قراردادی | F9: بندرعباس | G9: واحد عملیاتی | H9: واحد تولید | I9: راننده میکسر | J9: بتن سازی(کارخانه) | L9: 37.00 | M9: 16,481,818 | N9: 4.61 | O9: 587,576 | T9: 114,402,727 | U9: 3,903,773 | V9: 18,707,145 | W9: 106,133,953
A10: 1401 | B10: فروردین | C10: 3040200024 | D10: حسین خنده جام | E10: قراردادی | F10: بندرعباس | G10: واحد پشتیبانی | H10: واحد حراست | I10: نگهبان | J10: حراست (کارخانه) | L10: 92.05 | M10: 27,623,175 | N10: 101.60 | O10: 21,143,400 | P10: 88.00 | Q10: 6,051,792 | T10: 122,726,824 | U10: 4,347,372 | V10: 17,457,225 | W10: 114,306,099
A11: 1401 | B11: فروردین | C11: 3040200025 | D11: رضا شبانی | E11: قراردادی | F11: بندرعباس | G11: واحد پشتیبانی | H11: واحد آشپزخانه و رستوران | I11: آشپز | J11: آشپزخانه (کارخانه) | L11: 26.23 | M11: 8,808,001 | N11: 16.73 | O11: 1,605,234 | T11: 79,933,626 | U11: 486,027 | V11: 17,457,225 | W11: 75,374,246
A12: 1401 | B12: فروردین | C12: 3040200060 | D12: رجبعلی استوار | E12: قراردادی | F12: بندرعباس | G12: واحد پشتیبانی | H12: واحد تعمیر و نگهداری PM | I12: سرویس کار ماشین آلات و تجهیزات | J12: تعمیر و نگهداری(کارخانه) | L12: 26.18 | M12: 11,219,691 | O12: 0 | T12: 104,160,253 | U12: 2,057,550 | V12: 18,108,225 | W12: 97,877,450
A13: 1401 | B13: فروردین | C13: 3040200074 | D13: محمد سالاری نودژ | E13: قراردادی | F13: بندرعباس | G13: واحد اداری و تشکیلاتی | H13: واحد انبار | I13: سرپرست انبار | J13: انبار (کارخانه) | L13: 26.88 | M13: 7,698,409 | O13: 0 | T13: 69,198,409 | V13: 17,457,225 | W13: 65,125,056
A14: 1401 | B14: فروردین | C14: 3040200075 | D14: علی محبی نودژ | E14: قراردادی | F14: بندرعباس | G14: واحد پشتیبانی | H14: واحد حراست | I14: نگهبان | J14: حراست (کارخانه) | L14: 139.96 | M14: 37,228,907 | N14: 52.83 | O14: 6,579,940 | P14: 176.00 | Q14: 10,728,025 | T14: 104,835,662 | U14: 4,092,187 | V14: 14,078,407 | W14: 97,458,513
A15: 1401 | B15: فروردین | C15: 3040200076 | D15: صمد جوادی سلیم آباد | E15: قراردادی | F15: بندرعباس | G15: واحد عملیاتی | H15: واحد تولید | I15: مسئول تولید | J15: بتن ریزی(کارخانه) | L15: 10.23 | M15: 4,884,091 | O15: 0 | T15: 97,384,091 | U15: 2,231,074 | V15: 17,457,225 | W15: 91,079,664
A16: 1401 | B16: فروردین | C16: 3040210003 | D16: محمد پرستش | E16: قراردادی | F16: تهران | G16: واحد اداری و تشکیلاتی | H16: واحد تدارکات | I16: مسئول خرید | J16: تدارکات(دفتر مرکزی) | L16: 25.00 | M16: 10,652,340 | O16: 0 | T16: 107,381,074 | U16: 1,820,391 | V16: 24,162,488 | W16: 99,922,769
A17: 1401 | B17: فروردین | C17: 3040210004 | D17: حسین سلیمانی | E17: قراردادی | F17: تهران | G17: واحد اداری و تشکیلاتی | H17: واحد مالی | I17: سرپرست حسابداری | J17: مالی (دفتر مرکزی) | L17: 34.38 | M17: 21,044,974 | T17: 135,433,328 | U17: 6,020,808 | V17: 18,108,225 | W17: 125,187,267
A18: 1401 | B18: فروردین | C18: 3040210005 | D18: مینا بابائی | E18: قراردادی | F18: تهران | G18: واحد اداری و تشکیلاتی | H18: واحد اداری | I18: مسئول دفتر | J18: اداری (دفتر مرکزی) | L18: 13.90 | M18: 6,280,273 | O18: 0 | T18: 94,646,940 | U18: 1,942,169 | V18: 18,108,225 | W18: 88,479,518
A19: 1401 | B19: فروردین | C19: 5010100004 | D19: رضا مقدسی | E19: قراردادی | F19: تهران | G19: واحد اداری و تشکیلاتی | H19: واحد مدیریت | I19: مدیرعامل | J19: مدیریت عامل(دفتر مرکزی) | M19: 0 | O19: 0 | R19: 1 | S19: 6,244,305 | T19: 180,282,819 | U19: 8,696,865 | V19: 50,957,629 | W19: 159,695,841
A20: 1401 | B20: اردیبهشت | C20: 3040200007 | D20: حمیدرضا حمیدی زاده | E20: قراردادی | F20: بندرعباس | G20: واحد اداری و تشکیلاتی | H20: واحد اداری | I20: مسئول خرید | J20: اداری(کارخانه) | L20: 23.76 | M20: 12,250,636 | N20: 8.65 | O20: 4,458,682 | T20: 115,409,318 | U20: 4,004,431 | V20: 18,707,145 | W20: 107,039,886
A21: 1401 | B21: اردیبهشت | C21: 3040200009 | D21: حیدر محبوبی شمیلی | E21: قراردادی | F21: بندرعباس | G21: واحد عملیاتی | H21: واحد تولید | I21: اپراتور بچینگ | J21: بتن سازی(کارخانه) | L21: 66.43 | M21: 23,812,461 | N21: 32.23 | O21: 8,366,194 | T21: 113,742,222 | U21: 2,966,017 | V21: 20,239,497 | W21: 106,053,656
A22: 1401 | B22: اردیبهشت | C22: 3040200012 | D22: مهران حاجی زاده | E22: قراردادی | F22: بندرعباس | G22: واحد پشتیبانی | H22: واحد فنی و مهندسی و برنامه ریزی | I22: مدیر فنی | J22: فنی تولید (کارخانه) | L22: 32.91 | M22: 22,403,239 | N22: 8.66 | O22: 5,898,574 | R22: 5 | S22: 17,825,360 | T22: 180,003,918 | U22: 7,710,127 | V22: 24,504,771 | W22: 166,576,011
A23: 1401 | B23: اردیبهشت | C23: 3040200014 | D23: فتحعلی شفیعی زاده | E23: قراردادی | F23: بندرعباس | G23: واحد پشتیبانی | H23: واحد حراست | I23: سرپرست نگهبان | J23: حراست (کارخانه) | L23: 115.56 | M23: 37,002,915 | N23: 84.63 | O23: 14,927,563 | P23: 8.23 | Q23: 604,619 | T23: 127,886,826 | U23: 4,416,232 | V23: 18,707,145 | W23: 119,105,593
A24: 1401 | B24: اردیبهشت | C24: 3040200015 | D24: حسین قنبری | E24: قراردادی | F24: بندرعباس | G24: واحد عملیاتی | H24: واحد حمل و نقل | I24: راننده دانگ فنگ | J24: حمل مواد اولیه (کارخانه) | L24: 5.18 | M24: 2,396,036 | O24: 0 | T24: 100,817,386 | U24: 1,738,454 | V24: 17,457,225 | W24: 95,005,579
A25: 1401 | B25: اردیبهشت | C25: 3040200017 | D25: سعید دامچین | E25: قراردادی | F25: بندرعباس | G25: واحد عملیاتی | H25: واحد تولید | I25: مسئول تولید | J25: بتن ریزی(کارخانه) | L25: 58.70 | M25: 26,454,583 | N25: 22.38 | O25: 5,709,615 | T25: 124,524,873 | U25: 4,511,987 | V25: 18,108,225 | W25: 115,787,633
A26: 1401 | B26: اردیبهشت | C26: 3040200019 | D26: اسداله پدرام | E26: قراردادی | F26: بندرعباس | G26: واحد عملیاتی | H26: واحد تولید | I26: کارگر تولید | J26: آرماتور، میلگرد (کارخانه) | L26: 43.03 | M26: 14,030,534 | N26: 14.03 | O26: 3,418,749 | T26: 93,751,264 | U26: 954,343 | V26: 18,707,145 | W26: 88,431,920
A27: 1401 | B27: اردیبهشت | C27: 3040200020 | D27: علیرضا ادیب نیا | E27: قراردادی | F27: بندرعباس | G27: واحد عملیاتی | H27: واحد تولید | I27: راننده میکسر | J27: بتن سازی(کارخانه) | L27: 79.98 | M27: 35,628,939 | N27: 36.96 | O27: 10,973,031 | T27: 143,935,303 | U27: 6,857,030 | V27: 18,707,145 | W27: 132,713,272
A28: 1401 | B28: اردیبهشت | C28: 3040200024 | D28: حسین خنده جام | E28: قراردادی | F28: بندرعباس | G28: واحد پشتیبانی | H28: واحد حراست | I28: نگهبان | J28: حراست (کارخانه) | L28: 132.10 | M28: 39,641,732 | N28: 100.75 | O28: 19,066,357 | P28: 185.40 | Q28: 12,752,776 | T28: 139,369,322 | U28: 6,011,622 | V28: 17,457,225 | W28: 129,284,347
A29: 1401 | B29: اردیبهشت | C29: 3040200025 | D29: رضا شبانی | E29: قراردادی | F29: بندرعباس | G29: واحد پشتیبانی | H29: واحد آشپزخانه و رستوران | I29: آشپز | J29: آشپزخانه (کارخانه) | L29: 62.85 | M29: 21,102,269 | N29: 65.18 | O29: 12,008,876 | T29: 102,631,536 | U29: 2,755,819 | V29: 17,457,225 | W29: 95,802,364
A30: 1401 | B30: اردیبهشت | C30: 3040200060 | D30: رجبعلی استوار | E30: قراردادی | F30: بندرعباس | G30: واحد پشتیبانی | H30: واحد تعمیر و نگهداری PM | I30: سرویس کار ماشین آلات و تجهیزات | J30: تعمیر و نگهداری(کارخانه) | L30: 55.86 | M30: 23,939,150 | N30: 13.90 | O30: 4,456,453 | T30: 121,336,165 | U30: 3,775,141 | V30: 18,108,225 | W30: 113,335,771
A31: 1401 | B31: اردیبهشت | C31: 3040200074 | D31: محمد سالاری نودژ | E31: قراردادی | F31: بندرعباس | G31: واحد اداری و تشکیلاتی | H31: واحد انبار | I31: سرپرست انبار | J31: انبار (کارخانه) | L31: 24.80 | M31: 7,101,818 | N31: 7.70 | O31: 2,205,000 | T31: 70,806,818 | V31: 17,457,225 | W31: 66,733,465
A32: 1401 | B32: اردیبهشت | C32: 3040200075 | D32: علی محبی نودژ | E32: قراردادی | F32: بندرعباس | G32: واحد پشتیبانی | H32: واحد حراست | I32: نگهبان | J32: حراست (کارخانه) | L32: 150.43 | M32: 40,012,873 | N32: 91.80 | O32: 14,183,285 | P32: 222.21 | Q32: 13,546,570 | T32: 130,113,228 | U32: 5,086,012 | V32: 17,457,225 | W32: 120,953,863
A33: 1401 | B33: اردیبهشت | C33: 3040200076 | D33: صمد جوادی سلیم آباد | E33: قراردادی | F33: بندرعباس | G33: واحد عملیاتی | H33: واحد تولید | I33: مسئول تولید | J33: بتن ریزی(کارخانه) | L33: 40.16 | M33: 19,170,455 | N33: 24.11 | O33: 8,118,182 | T33: 119,788,637 | U33: 4,471,528 | V33: 17,457,225 | W33: 111,243,756
A34: 1401 | B34: اردیبهشت | C34: 3040210003 | D34: محمد پرستش | E34: قراردادی | F34: تهران | G34: واحد اداری و تشکیلاتی | H34: واحد تدارکات | I34: مسئول خرید | J34: تدارکات(دفتر مرکزی) | L34: 49.56 | M34: 21,120,039 | O34: 0 | T34: 117,848,773 | U34: 2,867,161 | V34: 24,162,488 | W34: 109,343,698
A35: 1401 | B35: اردیبهشت | C35: 3040210004 | D35: حسین سلیمانی | E35: قراردادی | F35: تهران | G35: واحد اداری و تشکیلاتی | H35: واحد مالی | I35: سرپرست حسابداری | J35: مالی (دفتر مرکزی) | L35: 37.76 | M35: 23,115,807 | O35: 0 | T35: 137,504,161 | U35: 6,227,890 | V35: 18,108,225 | W35: 127,051,018
A36: 1401 | B36: اردیبهشت | C36: 3040210005 | D36: مینا بابائی | E36: قراردادی | F36: تهران | G36: واحد اداری و تشکیلاتی | H36: واحد اداری | I36: مسئول دفتر | J36: اداری (دفتر مرکزی) | L36: 17.68 | M36: 7,989,652 | O36: 0 | T36: 96,356,319 | U36: 2,113,106 | V36: 18,108,225 | W36: 90,017,960
A37: 1401 | B37: اردیبهشت | C37: 5010100004 | D37: رضا مقدسی | E37: قراردادی | F37: تهران | G37: واحد اداری و تشکیلاتی | H37: واحد مدیریت | I37: مدیرعامل | J37: مدیریت عامل(دفتر مرکزی) | M37: 0 | O37: 0 | R37: 2 | S37: 12,488,610 | T37: 186,527,124 | U37: 8,696,865 | V37: 50,957,629 | W37: 165,940,146
A38: 1401 | B38: خرداد | C38: 3040200007 | D38: حمیدرضا حمیدی زاده | E38: قراردادی | F38: بندرعباس | G38: واحد اداری و تشکیلاتی | H38: واحد اداری | I38: مسئول خرید | J38: اداری(کارخانه) | L38: 65.98 | M38: 34,011,409 | N38: 15.50 | O38: 7,989,545 | T38: 140,700,954 | U38: 6,533,596 | V38: 18,707,145 | W38: 129,802,357
A39: 1401 | B39: خرداد | C39: 3040200009 | D39: حیدر محبوبی شمیلی | E39: قراردادی | F39: بندرعباس | G39: واحد عملیاتی | H39: واحد تولید | I39: اپراتور بچینگ | J39: بتن سازی(کارخانه) | L39: 70.36 | M39: 25,222,332 | N39: 3.78 | O39: 387,458 | T39: 107,173,357 | U39: 2,309,131 | V39: 20,239,497 | W39: 100,141,677
A40: 1401 | B40: خرداد | C40: 3040200012 | D40: مهران حاجی زاده | E40: قراردادی | F40: بندرعباس | G40: واحد پشتیبانی | H40: واحد فنی و مهندسی و برنامه ریزی | I40: مدیر فنی | J40: فنی تولید (کارخانه) | L40: 37.53 | M40: 25,545,364 | O40: 0 | R40: 3 | S40: 13,369,020 | T40: 172,791,129 | U40: 7,434,483 | V40: 24,504,771 | W40: 159,638,866
A41: 1401 | B41: خرداد | C41: 3040200014 | D41: فتحعلی شفیعی زاده | E41: قراردادی | F41: بندرعباس | G41: واحد پشتیبانی | H41: واحد حراست | I41: سرپرست نگهبان | J41: حراست (کارخانه) | L41: 91.95 | M41: 29,441,172 | O41: 9,662,779 | P41: 61.55 | Q41: 4,514,100 | T41: 118,969,780 | U41: 3,524,528 | V41: 18,707,145 | W41: 111,080,251
A42: 1401 | B42: خرداد | C42: 3040200015 | D42: حسین قنبری | E42: قراردادی | F42: بندرعباس | G42: واحد عملیاتی | H42: واحد حمل و نقل | I42: راننده دانگ فنگ | J42: حمل مواد اولیه (کارخانه) | L42: 5.18 | M42: 2,396,036 | O42: 0 | T42: 100,817,386 | U42: 1,738,453 | V42: 17,457,225 | W42: 95,005,580
A43: 1401 | B43: خرداد | C43: 3040200017 | D43: سعید دامچین | E43: قراردادی | F43: بندرعباس | G43: واحد عملیاتی | H43: واحد تولید | I43: مسئول تولید | J43: بتن ریزی(کارخانه) | L43: 61.31 | M43: 27,633,847 | N43: 10.46 | O43: 1,347,731 | T43: 121,342,253 | U43: 4,193,725 | V43: 18,108,225 | W43: 112,923,275
A44: 1401 | B44: خرداد | C44: 3040200019 | D44: اسداله پدرام | E44: قراردادی | F44: بندرعباس | G44: واحد عملیاتی | H44: واحد تولید | I44: کارگر تولید | J44: آرماتور، میلگرد (کارخانه) | L44: 29.70 | M44: 9,683,351 | O44: 0 | T44: 85,985,332 | U44: 226,084 | V44: 18,707,145 | W44: 81,394,247
A45: 1401 | B45: خرداد | C45: 3040200020 | D45: علیرضا ادیب نیا | E45: قراردادی | F45: بندرعباس | G45: واحد عملیاتی | H45: واحد تولید | I45: راننده میکسر | J45: بتن سازی(کارخانه) | L45: 79.66 | M45: 35,487,879 | N45: 13.18 | O45: 2,733,182 | T45: 135,554,394 | U45: 6,018,939 | V45: 18,707,145 | W45: 125,170,454
A46: 1401 | B46: خرداد | C46: 3040200024 | D46: حسین خنده جام | E46: قراردادی | F46: بندرعباس | G46: واحد پشتیبانی | H46: واحد حراست | I46: نگهبان | J46: حراست (کارخانه) | L46: 163.73 | M46: 49,134,541 | N46: 74.11 | O46: 12,274,347 | P46: 145.68 | Q46: 10,018,466 | T46: 139,335,811 | U46: 6,008,271 | V46: 17,457,225 | W46: 129,254,187
A47: 1401 | B47: خرداد | C47: 3040200025 | D47: رضا شبانی | E47: قراردادی | F47: بندرعباس | G47: واحد پشتیبانی | H47: واحد آشپزخانه و رستوران | I47: آشپز | J47: آشپزخانه (کارخانه) | L47: 41.13 | M47: 13,810,766 | N47: 19.00 | O47: 1,822,676 | T47: 85,153,833 | U47: 1,008,048 | V47: 17,457,225 | W47: 80,072,432
A48: 1401 | B48: خرداد | C48: 3040200060 | D48: رجبعلی استوار | E48: قراردادی | F48: بندرعباس | G48: واحد پشتیبانی | H48: واحد تعمیر و نگهداری PM | I48: سرویس کار ماشین آلات و تجهیزات | J48: تعمیر و نگهداری(کارخانه) | L48: 83.30 | M48: 35,694,473 | N48: 22.68 | O48: 5,674,632 | T48: 134,309,667 | U48: 5,072,492 | V48: 18,108,225 | W48: 125,011,922
A49: 1401 | B49: خرداد | C49: 3040200074 | D49: محمد سالاری نودژ | E49: قراردادی | F49: بندرعباس | G49: واحد اداری و تشکیلاتی | H49: واحد انبار | I49: سرپرست انبار | J49: انبار (کارخانه) | L49: 48.90 | M49: 20,538,000 | O49: 0 | T49: 103,738,000 | U49: 1,852,317 | V49: 17,457,225 | W49: 97,812,330
A50: 1401 | B50: خرداد | C50: 3040200075 | D50: علی محبی نودژ | E50: قراردادی | F50: بندرعباس | G50: واحد پشتیبانی | H50: واحد حراست | I50: نگهبان | J50: حراست (کارخانه) | L50: 136.53 | M50: 36,315,695 | N50: 40.21 | O50: 3,056,284 | P50: 150.08 | Q50: 9,148,080 | T50: 110,890,559 | U50: 3,163,746 | V50: 17,457,225 | W50: 103,653,460
A51: 1401 | B51: خرداد | C51: 3040200076 | D51: صمد جوادی سلیم آباد | E51: قراردادی | F51: بندرعباس | G51: واحد عملیاتی | H51: واحد تولید | I51: مسئول تولید | J51: بتن ریزی(کارخانه) | L51: 70.53 | M51: 33,663,636 | N51: 38.28 | O51: 12,175,000 | T51: 138,338,636 | U51: 6,326,529 | V51: 17,457,225 | W51: 127,938,754
A52: 1401 | B52: خرداد | C52: 3040210003 | D52: محمد پرستش | E52: قراردادی | F52: تهران | G52: واحد اداری و تشکیلاتی | H52: واحد تدارکات | I52: مسئول خرید | J52: تدارکات(دفتر مرکزی) | L52: 32.86 | M52: 14,004,276 | O52: 0 | T52: 110,733,010 | U52: 2,155,585 | V52: 24,162,488 | W52: 102,939,511
A53: 1401 | B53: خرداد | C53: 3040210004 | D53: حسین سلیمانی | E53: قراردادی | F53: تهران | G53: واحد اداری و تشکیلاتی | H53: واحد مالی | I53: سرپرست حسابداری | J53: مالی (دفتر مرکزی) | L53: 29.33 | M53: 17,954,025 | O53: 0 | T53: 132,342,379 | U53: 5,711,713 | V53: 18,108,225 | W53: 122,405,413
A54: 1401 | B54: خرداد | C54: 3040210005 | D54: مینا بابائی | E54: قراردادی | F54: تهران | G54: واحد اداری و تشکیلاتی | H54: واحد اداری | I54: مسئول دفتر | J54: اداری (دفتر مرکزی) | L54: 16.58 | M54: 7,492,652 | O54: 0 | T54: 95,859,319 | U54: 2,063,407 | V54: 18,108,225 | W54: 89,570,659
A55: 1401 | B55: خرداد | C55: 5010100004 | D55: رضا مقدسی | E55: قراردادی | F55: تهران | G55: واحد اداری و تشکیلاتی | H55: واحد مدیریت | I55: مدیرعامل | J55: مدیریت عامل(دفتر مرکزی) | L55: 0.00 | M55: 0 | O55: 0 | R55: 2 | S55: 12,488,610 | T55: 186,527,124 | U55: 8,696,865 | V55: 50,957,629 | W55: 165,940,146
A56: 1401 | B56: تیر | C56: 3040200007 | D56: حمیدرضا حمیدی زاده | E56: قراردادی | F56: بندرعباس | G56: واحد اداری و تشکیلاتی | H56: واحد اداری | I56: مسئول خرید | J56: اداری(کارخانه) | L56: 30.06 | M56: 15,498,000 | O56: 0 | T56: 114,198,000 | U56: 3,883,300 | V56: 18,707,145 | W56: 105,349,699
A57: 1401 | B57: تیر | C57: 3040200009 | D57: حیدر محبوبی شمیلی | E57: قراردادی | F57: بندرعباس | G57: واحد عملیاتی | H57: واحد تولید | I57: اپراتور بچینگ | J57: بتن سازی(کارخانه) | L57: 99.70 | M57: 35,736,614 | N57: 26.53 | O57: 4,138,292 | P57: 3.15 | Q57: 256,286 | T57: 121,694,759 | U57: 3,761,271 | V57: 20,239,497 | W57: 110,810,939
A58: 1401 | B58: تیر | C58: 3040200012 | D58: مهران حاجی زاده | E58: قراردادی | F58: بندرعباس | G58: واحد پشتیبانی | H58: واحد فنی و مهندسی و برنامه ریزی | I58: مدیر فنی | J58: فنی تولید (کارخانه) | L58: 47.78 | M58: 32,521,563 | O58: 0 | T58: 166,398,308 | U58: 8,132,103 | V58: 24,504,771 | W58: 152,548,425
A59: 1401 | B59: تیر | C59: 3040200014 | D59: فتحعلی شفیعی زاده | E59: قراردادی | F59: بندرعباس | G59: واحد پشتیبانی | H59: واحد حراست | I59: سرپرست نگهبان | J59: حراست (کارخانه) | L59: 123.60 | M59: 39,575,082 | N59: 76.30 | O59: 19,272,955 | P59: 48.25 | Q59: 3,539,665 | T59: 137,739,431 | U59: 5,401,493 | V59: 18,707,145 | W59: 125,572,937
A60: 1401 | B60: تیر | C60: 3040200015 | D60: حسین قنبری | E60: قراردادی | F60: بندرعباس | G60: واحد عملیاتی | H60: واحد حمل و نقل | I60: راننده دانگ فنگ | J60: حمل مواد اولیه (کارخانه) | L60: 5.18 | M60: 2,396,036 | O60: 0 | T60: 100,817,386 | U60: 1,738,453 | V60: 17,457,225 | W60: 95,005,580
A61: 1401 | B61: تیر | C61: 3040200017 | D61: سعید دامچین | E61: قراردادی | F61: بندرعباس | G61: واحد عملیاتی | H61: واحد تولید | I61: مسئول تولید | J61: بتن ریزی(کارخانه) | L61: 80.16 | M61: 36,129,058 | N61: 32.73 | O61: 8,732,352 | T61: 137,222,085 | U61: 5,781,708 | V61: 18,108,225 | W61: 126,615,124
A62: 1401 | B62: تیر | C62: 3040200019 | D62: اسداله پدرام | E62: قراردادی | F62: بندرعباس | G62: واحد عملیاتی | H62: واحد تولید | I62: کارگر تولید | J62: آرماتور، میلگرد (کارخانه) | L62: 38.11 | M62: 12,427,510 | N62: 5.03 | O62: 468,875 | T62: 89,198,366 | U62: 547,386 | V62: 18,707,145 | W62: 81,885,979
A63: 1401 | B63: تیر | C63: 3040200020 | D63: علیرضا ادیب نیا | E63: قراردادی | F63: بندرعباس | G63: واحد عملیاتی | H63: واحد تولید | I63: راننده میکسر | J63: بتن سازی(کارخانه) | L63: 107.45 | M63: 47,864,090 | N63: 29.78 | O63: 5,556,515 | P63: 3.15 | Q63: 318,500 | T63: 151,072,438 | U63: 7,570,744 | V63: 18,707,145 | W63: 138,536,693
A64: 1401 | B64: تیر | C64: 3040200024 | D64: حسین خنده جام | E64: قراردادی | F64: بندرعباس | G64: واحد پشتیبانی | H64: واحد حراست | I64: نگهبان | J64: حراست (کارخانه) | L64: 68.75 | M64: 45,413,440 | N64: 151.33 | O64: 10,542,406 | P64: 149.41 | Q64: 10,277,043 | T64: 134,141,346 | U64: 5,488,824 | V64: 17,457,225 | W64: 122,779,169
A65: 1401 | B65: تیر | C65: 3040200025 | D65: رضا شبانی | E65: قراردادی | F65: بندرعباس | G65: واحد پشتیبانی | H65: واحد آشپزخانه و رستوران | I65: آشپز | J65: آشپزخانه (کارخانه) | L65: 29.26 | M65: 9,826,461 | O65: 0 | T65: 79,346,852 | U65: 427,350 | V65: 17,457,225 | W65: 74,246,149
A66: 1401 | B66: تیر | C66: 3040200060 | D66: رجبعلی استوار | E66: قراردادی | F66: بندرعباس | G66: واحد پشتیبانی | H66: واحد تعمیر و نگهداری PM | I66: سرویس کار ماشین آلات و تجهیزات | J66: تعمیر و نگهداری(کارخانه) | L66: 73.66 | M66: 31,566,541 | N66: 9.73 | O66: 1,992,549 | T66: 126,499,652 | U66: 4,291,490 | V66: 18,108,225 | W66: 115,582,909
A67: 1401 | B67: تیر | C67: 3040200074 | D67: محمد سالاری نودژ | E67: قراردادی | F67: بندرعباس | G67: واحد اداری و تشکیلاتی | H67: واحد انبار | I67: سرپرست انبار | J67: انبار (کارخانه) | L67: 56.73 | M67: 23,828,000 | N67: 6.08 | O67: 2,555,000 | T67: 109,583,000 | U67: 3,450,965 | V67: 17,457,225 | W67: 101,458,682
A68: 1401 | B68: تیر | C68: 3040200075 | D68: علی محبی نودژ | E68: قراردادی | F68: بندرعباس | G68: واحد پشتیبانی | H68: واحد حراست | I68: نگهبان | J68: حراست (کارخانه) | L68: 145.30 | M68: 38,647,488 | N68: 80.18 | O68: 9,747,684 | P68: 175.15 | Q68: 10,674,385 | T68: 121,440,057 | U68: 4,218,696 | V68: 17,457,225 | W68: 111,348,008
A69: 1401 | B69: تیر | C69: 3040200076 | D69: صمد جوادی سلیم آباد | E69: قراردادی | F69: بندرعباس | G69: واحد عملیاتی | H69: واحد تولید | I69: مسئول تولید | J69: بتن ریزی(کارخانه) | L69: 81.13 | M69: 38,722,727 | N69: 19.05 | O69: 2,597,727 | T69: 133,820,454 | U69: 5,874,710 | V69: 17,457,225 | W69: 122,672,391
A70: 1401 | B70: تیر | C70: 3040210004 | D70: حسین سلیمانی | E70: قراردادی | F70: تهران | G70: واحد اداری و تشکیلاتی | H70: واحد مالی | I70: سرپرست حسابداری | J70: مالی (دفتر مرکزی) | L70: 103.95 | M70: 63,624,576 | O70: 9,382,144 | T70: 187,395,074 | U70: 11,216,982 | V70: 18,108,225 | W70: 171,352,839
A71: 1401 | B71: تیر | C71: 3040210005 | D71: مینا بابائی | E71: قراردادی | F71: تهران | G71: واحد اداری و تشکیلاتی | H71: واحد اداری | I71: مسئول دفتر | J71: اداری (دفتر مرکزی) | L71: 11.58 | M71: 5,233,561 | O71: 0 | T71: 93,600,228 | U71: 1,837,497 | V71: 18,108,225 | W71: 86,937,478
A72: 1401 | B72: تیر | C72: 5010100004 | D72: رضا مقدسی | E72: قراردادی | F72: تهران | G72: واحد اداری و تشکیلاتی | H72: واحد مدیریت | I72: مدیرعامل | J72: مدیریت عامل(دفتر مرکزی) | M72: 0 | O72: 0 | R72: 2 | S72: 12,488,610 | T72: 186,527,124 | U72: 8,696,865 | V72: 50,957,629 | W72: 164,140,146
A73: 1401 | B73: مرداد | C73: 3040200007 | D73: حمیدرضا حمیدی زاده | E73: قراردادی | F73: بندرعباس | G73: واحد اداری و تشکیلاتی | H73: واحد اداری | I73: مسئول خرید | J73: اداری(کارخانه) | L73: 19.86 | M73: 10,240,364 | O73: 0 | T73: 108,940,364 | U73: 3,357,536 | V73: 18,707,145 | W73: 100,617,827
A74: 1401 | B74: مرداد | C74: 3040200009 | D74: حیدر محبوبی شمیلی | E74: قراردادی | F74: بندرعباس | G74: واحد عملیاتی | H74: واحد تولید | I74: اپراتور بچینگ | J74: بتن سازی(کارخانه) | L74: 68.61 | M74: 24,595,059 | O74: 0 | T74: 106,158,626 | U74: 2,207,657 | V74: 20,239,497 | W74: 96,828,420
A75: 1401 | B75: مرداد | C75: 3040200012 | D75: مهران حاجی زاده | E75: قراردادی | F75: بندرعباس | G75: واحد پشتیبانی | H75: واحد فنی و مهندسی و برنامه ریزی | I75: مدیر فنی | J75: فنی تولید (کارخانه) | L75: 52.70 | M75: 35,867,869 | O75: 0 | R75: 1 | S75: 3,565,072 | T75: 173,309,686 | U75: 8,466,733 | V75: 24,504,771 | W75: 159,125,173
A76: 1401 | B76: مرداد | C76: 3040200014 | D76: فتحعلی شفیعی زاده | E76: قراردادی | F76: بندرعباس | G76: واحد پشتیبانی | H76: واحد حراست | I76: سرپرست نگهبان | J76: حراست (کارخانه) | L76: 110.03 | M76: 35,231,215 | N76: 57.50 | O76: 10,554,727 | P76: 24.00 | Q76: 1,761,027 | T76: 122,898,698 | U76: 3,917,420 | V76: 18,707,145 | W76: 112,216,277
A77: 1401 | B77: مرداد | C77: 3040200015 | D77: حسین قنبری | E77: قراردادی | F77: بندرعباس | G77: واحد عملیاتی | H77: واحد حمل و نقل | I77: راننده دانگ فنگ | J77: حمل مواد اولیه (کارخانه) | L77: 5.18 | M77: 2,396,036 | O77: 0 | T77: 100,817,386 | U77: 1,738,454 | V77: 17,457,225 | W77: 95,005,579
A78: 1401 | B78: مرداد | C78: 3040200017 | D78: سعید دامچین | E78: قراردادی | F78: بندرعباس | G78: واحد عملیاتی | H78: واحد تولید | I78: مسئول تولید | J78: بتن ریزی(کارخانه) | L78: 84.75 | M78: 38,194,648 | N78: 32.35 | O78: 5,447,794 | T78: 136,003,117 | U78: 5,659,812 | V78: 18,108,225 | W78: 125,518,052
A79: 1401 | B79: مرداد | C79: 3040200019 | D79: اسداله پدرام | E79: قراردادی | F79: بندرعباس | G79: واحد عملیاتی | H79: واحد تولید | I79: کارگر تولید | J79: آرماتور، میلگرد (کارخانه) | L79: 43.38 | M79: 14,144,647 | O79: 0 | T79: 90,446,628 | U79: 672,213 | V79: 18,707,145 | W79: 83,009,414
A80: 1401 | B80: مرداد | C80: 3040200020 | D80: علیرضا ادیب نیا | E80: قراردادی | F80: بندرعباس | G80: واحد عملیاتی | H80: واحد تولید | I80: راننده میکسر | J80: بتن سازی(کارخانه) | L80: 78.08 | M80: 34,782,576 | N80: 9.66 | O80: 1,230,303 | T80: 133,346,212 | U80: 5,798,121 | V80: 18,707,145 | W80: 122,583,090
A81: 1401 | B81: مرداد | C81: 3040200024 | D81: حسین خنده جام | E81: قراردادی | F81: بندرعباس | G81: واحد پشتیبانی | H81: واحد حراست | I81: نگهبان | J81: حراست (کارخانه) | L81: 80.51 | M81: 24,162,151 | N81: 23.76 | O81: 2,037,746 | P81: 103.36 | Q81: 7,108,105 | T81: 101,216,459 | U81: 2,196,336 | V81: 17,457,225 | W81: 93,146,770
A82: 1401 | B82: مرداد | C82: 3040200025 | D82: رضا شبانی | E82: قراردادی | F82: بندرعباس | G82: واحد پشتیبانی | H82: واحد آشپزخانه و رستوران | I82: آشپز | J82: آشپزخانه (کارخانه) | L82: 57.10 | M82: 19,171,672 | N82: 54.00 | O82: 9,497,100 | T82: 98,189,163 | U82: 2,311,581 | V82: 17,457,225 | W82: 91,204,229
A83: 1401 | B83: مرداد | C83: 3040200060 | D83: رجبعلی استوار | E83: قراردادی | F83: بندرعباس | G83: واحد پشتیبانی | H83: واحد تعمیر و نگهداری PM | I83: سرویس کار ماشین آلات و تجهیزات | J83: تعمیر و نگهداری(کارخانه) | L83: 80.85 | M83: 34,644,635 | N83: 7.16 | O83: 877,415 | T83: 128,462,612 | U83: 4,487,785 | V83: 18,108,225 | W83: 117,349,574
A84: 1401 | B84: مرداد | C84: 3040200074 | D84: محمد سالاری نودژ | E84: قراردادی | F84: بندرعباس | G84: واحد اداری و تشکیلاتی | H84: واحد انبار | I84: سرپرست انبار | J84: انبار (کارخانه) | L84: 48.21 | M84: 20,251,000 | O84: 0 | T84: 103,451,000 | U84: 2,837,764 | V84: 17,457,225 | W84: 95,939,883
A85: 1401 | B85: مرداد | C85: 3040200075 | D85: علی محبی نودژ | E85: قراردادی | F85: بندرعباس | G85: واحد پشتیبانی | H85: واحد حراست | I85: نگهبان | J85: حراست (کارخانه) | L85: 152.41 | M85: 40,540,409 | N85: 65.33 | O85: 9,771,749 | P85: 175.00 | Q85: 10,669,509 | T85: 123,352,167 | U85: 4,409,906 | V85: 17,457,225 | W85: 113,068,908
A86: 1401 | B86: مرداد | C86: 3040200076 | D86: صمد جوادی سلیم آباد | E86: قراردادی | F86: بندرعباس | G86: واحد عملیاتی | H86: واحد تولید | I86: مسئول تولید | J86: بتن ریزی(کارخانه) | L86: 71.68 | M86: 34,212,500 | N86: 25.16 | O86: 6,909,091 | T86: 133,621,591 | U86: 5,854,824 | V86: 17,457,225 | W86: 122,493,414
A87: 1401 | B87: مرداد | C87: 3040210004 | D87: حسین سلیمانی | E87: قراردادی | F87: تهران | G87: واحد اداری و تشکیلاتی | H87: واحد مالی | I87: سرپرست حسابداری | J87: مالی (دفتر مرکزی) | L87: 99.00 | M87: 60,594,835 | O87: 0 | T87: 174,983,189 | U87: 9,975,794 | V87: 18,108,225 | W87: 160,182,142
A88: 1401 | B88: مرداد | C88: 3040210005 | D88: مینا بابائی | E88: قراردادی | F88: تهران | G88: واحد اداری و تشکیلاتی | H88: واحد اداری | I88: مسئول دفتر | J88: اداری (دفتر مرکزی) | L88: 7.71 | M88: 3,486,530 | O88: 0 | T88: 91,853,197 | U88: 1,662,795 | V88: 18,108,225 | W88: 85,365,149
A89: 1401 | B89: مرداد | C89: 5010100004 | D89: رضا مقدسی | E89: قراردادی | F89: تهران | G89: واحد اداری و تشکیلاتی | H89: واحد مدیریت | I89: مدیرعامل | J89: مدیریت عامل(دفتر مرکزی) | M89: 0 | O89: 0 | T89: 174,038,514 | U89: 8,696,865 | V89: 50,957,629 | W89: 151,651,536
A90: 1401 | B90: شهریور | C90: 3040200007 | D90: حمیدرضا حمیدی زاده | E90: قراردادی | F90: بندرعباس | G90: واحد اداری و تشکیلاتی | H90: واحد اداری | I90: مسئول خرید | J90: اداری(کارخانه) | L90: 10.58 | M90: 5,455,227 | O90: 0 | T90: 104,155,227 | U90: 2,879,023 | V90: 18,707,145 | W90: 96,311,203
A91: 1401 | B91: شهریور | C91: 3040200009 | D91: حیدر محبوبی شمیلی | E91: قراردادی | F91: بندرعباس | G91: واحد عملیاتی | H91: واحد تولید | I91: اپراتور بچینگ | J91: بتن سازی(کارخانه) | L91: 71.91 | M91: 25,777,915 | O91: 0 | T91: 107,341,482 | U91: 2,325,944 | V91: 20,239,497 | W91: 97,892,989
A92: 1401 | B92: شهریور | C92: 3040200012 | D92: مهران حاجی زاده | E92: قراردادی | F92: بندرعباس | G92: واحد پشتیبانی | H92: واحد فنی و مهندسی و برنامه ریزی | I92: مدیر فنی | J92: فنی تولید (کارخانه) | L92: 53.60 | M92: 36,480,414 | N92: 4.00 | O92: 777,834 | R92: 2 | S92: 7,130,144 | T92: 178,265,137 | U92: 8,605,772 | V92: 24,504,771 | W92: 163,941,585
A93: 1401 | B93: شهریور | C93: 3040200014 | D93: فتحعلی شفیعی زاده | E93: قراردادی | F93: بندرعباس | G93: واحد پشتیبانی | H93: واحد حراست | I93: سرپرست نگهبان | J93: حراست (کارخانه) | L93: 129.91 | M93: 38,395,728 | N93: 41.91 | O93: 6,045,431 | P93: 7.70 | Q93: 563,529 | T93: 120,356,417 | U93: 3,663,192 | V93: 18,707,145 | W93: 109,928,224
A94: 1401 | B94: شهریور | C94: 3040200015 | D94: حسین قنبری | E94: قراردادی | F94: بندرعباس | G94: واحد عملیاتی | H94: واحد حمل و نقل | I94: راننده دانگ فنگ | J94: حمل مواد اولیه (کارخانه) | L94: 5.18 | M94: 2,396,036 | O94: 0 | T94: 100,817,386 | U94: 1,738,453 | V94: 17,457,225 | W94: 95,005,580
A95: 1401 | B95: شهریور | C95: 3040200017 | D95: سعید دامچین | E95: قراردادی | F95: بندرعباس | G95: واحد عملیاتی | H95: واحد تولید | I95: مسئول تولید | J95: بتن ریزی(کارخانه) | L95: 89.35 | M95: 40,267,750 | N95: 34.86 | O95: 7,703,312 | T95: 140,331,737 | U95: 6,092,673 | V95: 18,108,225 | W95: 129,413,811
A96: 1401 | B96: شهریور | C96: 3040200019 | D96: اسداله پدرام | E96: قراردادی | F96: بندرعباس | G96: واحد عملیاتی | H96: واحد تولید | I96: کارگر تولید | J96: آرماتور، میلگرد (کارخانه) | L96: 53.68 | M96: 17,502,846 | O96: 0 | T96: 93,804,827 | U96: 1,008,033 | V96: 18,707,145 | W96: 86,031,793
A97: 1401 | B97: شهریور | C97: 3040200020 | D97: علیرضا ادیب نیا | E97: قراردادی | F97: بندرعباس | G97: واحد عملیاتی | H97: واحد تولید | I97: راننده میکسر | J97: بتن سازی(کارخانه) | L97: 72.80 | M97: 32,429,091 | N97: 8.73 | O97: 1,111,515 | T97: 130,873,939 | U97: 5,550,894 | V97: 18,707,145 | W97: 120,358,044
A98: 1401 | B98: شهریور | C98: 3040200024 | D98: حسین خنده جام | E98: قراردادی | F98: بندرعباس | G98: واحد پشتیبانی | H98: واحد حراست | I98: نگهبان | J98: حراست (کارخانه) | L98: 178.56 | M98: 53,585,858 | N98: 52.53 | O98: 4,504,190 | P98: 188.68 | Q98: 12,978,343 | T98: 138,976,848 | U98: 5,972,374 | V98: 17,457,225 | W98: 127,131,121
A99: 1401 | B99: شهریور | C99: 3040200025 | D99: رضا شبانی | E99: قراردادی | F99: بندرعباس | G99: واحد پشتیبانی | H99: واحد آشپزخانه و رستوران | I99: آشپز | J99: آشپزخانه (کارخانه) | L99: 62.00 | M99: 20,816,876 | N99: 46.90 | O99: 6,417,738 | T99: 96,755,005 | U99: 2,168,165 | V99: 17,457,225 | W99: 89,913,487
A100: 1401 | B100: شهریور | C100: 3040200060 | D100: رجبعلی استوار | E100: قراردادی | F100: بندرعباس | G100: واحد پشتیبانی | H100: واحد تعمیر و نگهداری PM | I100: سرویس کار ماشین آلات و تجهیزات | J100: تعمیر و نگهداری(کارخانه) | L100: 66.71 | M100: 28,588,431 | N100: 8.20 | O100: 1,003,926 | T100: 122,532,919 | U100: 3,894,817 | V100: 18,108,225 | W100: 112,012,849
A101: 1401 | B101: شهریور | C101: 3040200074 | D101: محمد سالاری نودژ | E101: قراردادی | F101: بندرعباس | G101: واحد اداری و تشکیلاتی | H101: واحد انبار | I101: سرپرست انبار | J101: انبار (کارخانه) | L101: 34.88 | M101: 14,651,000 | O101: 0 | T101: 97,851,000 | U101: 2,277,765 | V101: 17,457,225 | W101: 90,899,882
A102: 1401 | B102: شهریور | C102: 3040200075 | D102: علی محبی نودژ | E102: قراردادی | F102: بندرعباس | G102: واحد پشتیبانی | H102: واحد حراست | I102: نگهبان | J102: حراست (کارخانه) | L102: 62.91 | M102: 16,734,833 | N102: 22.25 | O102: 4,315,909 | P102: 8.35 | Q102: 5,203,092 | T102: 88,624,334 | U102: 937,123 | V102: 17,457,225 | W102: 81,813,858
A103: 1401 | B103: شهریور | C103: 3040200076 | D103: صمد جوادی سلیم آباد | E103: قراردادی | F103: بندرعباس | G103: واحد عملیاتی | H103: واحد تولید | I103: مسئول تولید | J103: بتن ریزی(کارخانه) | L103: 50.95 | M103: 24,317,046 | N103: 9.13 | O103: 1,245,455 | T103: 118,062,501 | U103: 4,298,914 | V103: 17,457,225 | W103: 108,490,234
A104: 1401 | B104: شهریور | C104: 3040210004 | D104: حسین سلیمانی | E104: قراردادی | F104: تهران | G104: واحد اداری و تشکیلاتی | H104: واحد مالی | I104: سرپرست حسابداری | J104: مالی (دفتر مرکزی) | L104: 34.98 | M104: 21,412,215 | O104: 0 | T104: 135,800,569 | U104: 6,057,531 | V104: 18,108,225 | W104: 124,917,785
A105: 1401 | B105: شهریور | C105: 3040210005 | D105: مینا بابائی | E105: قراردادی | F105: تهران | G105: واحد اداری و تشکیلاتی | H105: واحد اداری | I105: مسئول دفتر | J105: اداری (دفتر مرکزی) | L105: 8.90 | M105: 4,021,182 | O105: 0 | T105: 92,387,849 | U105: 1,716,260 | V105: 18,108,225 | W105: 85,846,336
A106: 1401 | B106: شهریور | C106: 5010100004 | D106: رضا مقدسی | E106: قراردادی | F106: تهران | G106: واحد اداری و تشکیلاتی | H106: واحد مدیریت | I106: مدیرعامل | J106: مدیریت عامل(دفتر مرکزی) | M106: 0 | O106: 0 | T106: 174,038,514 | U106: 8,696,866 | V106: 50,957,629 | W106: 151,651,535
A107: 1401 | B107: مهر | C107: 3040200007 | D107: حمیدرضا حمیدی زاده | E107: قراردادی | F107: بندرعباس | G107: واحد اداری و تشکیلاتی | H107: واحد اداری | I107: مسئول خرید | J107: اداری(کارخانه) | L107: 11.48 | M107: 5,919,136 | O107: 0 | T107: 101,919,136 | U107: 2,666,107 | V107: 18,248,850 | W107: 94,394,964
A108: 1401 | B108: مهر | C108: 3040200009 | D108: حیدر محبوبی شمیلی | E108: قراردادی | F108: بندرعباس | G108: واحد عملیاتی | H108: واحد تولید | I108: اپراتور بچینگ | J108: بتن سازی(کارخانه) | L108: 52.08 | M108: 18,668,827 | N108: 11.31 | O108: 2,375,101 | T108: 100,729,944 | U108: 1,676,636 | V108: 19,731,771 | W108: 92,049,228
A109: 1401 | B109: مهر | C109: 3040200012 | D109: مهران حاجی زاده | E109: قراردادی | F109: بندرعباس | G109: واحد پشتیبانی | H109: واحد فنی و مهندسی و برنامه ریزی | I109: مدیر فنی | J109: فنی تولید (کارخانه) | L109: 30.63 | M109: 20,849,192 | O109: 0 | R109: 2 | S109: 7,130,144 | T109: 158,291,008 | U109: 6,623,416 | V109: 23,859,456 | W109: 146,100,386
A110: 1401 | B110: مهر | C110: 3040200014 | D110: فتحعلی شفیعی زاده | E110: قراردادی | F110: بندرعباس | G110: واحد پشتیبانی | H110: واحد حراست | I110: سرپرست نگهبان | J110: حراست (کارخانه) | L110: 116.98 | M110: 37,456,512 | N110: 65.25 | O110: 8,267,679 | P110: 64.00 | Q110: 4,696,073 | T110: 124,094,824 | U110: 4,047,725 | V110: 18,248,850 | W110: 113,389,034
A111: 1401 | B111: مهر | C111: 3040200015 | D111: حسین قنبری | E111: قراردادی | F111: بندرعباس | G111: واحد عملیاتی | H111: واحد حمل و نقل | I111: راننده دانگ فنگ | J111: حمل مواد اولیه (کارخانه) | L111: 10.20 | M111: 4,715,029 | O111: 0 | T111: 100,715,029 | U111: 1,737,970 | V111: 17,039,250 | W111: 95,001,234
A112: 1401 | B112: مهر | C112: 3040200017 | D112: سعید دامچین | E112: قراردادی | F112: بندرعباس | G112: واحد عملیاتی | H112: واحد تولید | I112: مسئول تولید | J112: بتن ریزی(کارخانه) | L112: 64.65 | M112: 29,136,095 | N112: 24.21 | O112: 6,063,716 | T112: 125,199,811 | U112: 4,589,724 | V112: 17,669,250 | W112: 90,887,262
A113: 1401 | B113: مهر | C113: 3040200019 | D113: اسداله پدرام | E113: قراردادی | F113: بندرعباس | G113: واحد عملیاتی | H113: واحد تولید | I113: کارگر تولید | J113: آرماتور، میلگرد (کارخانه) | L113: 52.38 | M113: 17,078,996 | N113: 11.00 | O113: 1,024,693 | T113: 92,697,848 | U113: 908,028 | V113: 18,248,850 | W113: 85,131,755
A114: 1401 | B114: مهر | C114: 3040200020 | D114: علیرضا ادیب نیا | E114: قراردادی | F114: بندرعباس | G114: واحد عملیاتی | H114: واحد تولید | I114: راننده میکسر | J114: بتن سازی(کارخانه) | L114: 63.13 | M114: 28,123,031 | N114: 13.88 | O114: 3,283,636 | P114: 0.26 | Q114: 24,500 | T114: 126,431,167 | U114: 5,117,310 | V114: 18,248,850 | W114: 116,455,792
A115: 1401 | B115: مهر | C115: 3040200024 | D115: حسین خنده جام | E115: قراردادی | F115: بندرعباس | G115: واحد پشتیبانی | H115: واحد حراست | I115: نگهبان | J115: حراست (کارخانه) | L115: 140.36 | M115: 42,122,466 | N115: 100.08 | O115: 15,686,785 | P115: 141.66 | Q115: 9,743,385 | T115: 133,889,199 | U115: 5,473,362 | V115: 17,039,250 | W115: 122,640,012
A116: 1401 | B116: مهر | C116: 3040200025 | D116: رضا شبانی | E116: قراردادی | F116: بندرعباس | G116: واحد پشتیبانی | H116: واحد آشپزخانه و رستوران | I116: آشپز | J116: آشپزخانه (کارخانه) | L116: 65.45 | M116: 21,975,235 | N116: 71.20 | O116: 13,269,560 | T116: 103,006,464 | U116: 2,803,064 | V116: 17,039,250 | W116: 95,627,575
A117: 1401 | B117: مهر | C117: 3040200060 | D117: رجبعلی استوار | E117: قراردادی | F117: بندرعباس | G117: واحد پشتیبانی | H117: واحد تعمیر و نگهداری PM | I117: سرویس کار ماشین آلات و تجهیزات | J117: تعمیر و نگهداری(کارخانه) | L117: 40.21 | M117: 17,233,046 | N117: 4.76 | O117: 2,042,541 | T117: 109,971,599 | U117: 2,648,928 | V117: 17,669,250 | W117: 50,799,846
A118: 1401 | B118: مهر | C118: 3040200074 | D118: محمد سالاری نودژ | E118: قراردادی | F118: بندرعباس | G118: واحد اداری و تشکیلاتی | H118: واحد انبار | I118: سرپرست انبار | J118: انبار (کارخانه) | L118: 27.00 | M118: 11,340,000 | O118: 0 | T118: 92,340,000 | U118: 1,736,417 | V118: 17,039,250 | W118: 86,027,758
A119: 1401 | B119: مهر | C119: 3040200075 | D119: علی محبی نودژ | E119: قراردادی | F119: بندرعباس | G119: واحد پشتیبانی | H119: واحد حراست | I119: نگهبان | J119: حراست (کارخانه) | L119: 144.36 | M119: 38,399,237 | N119: 91.73 | O119: 13,633,584 | P119: 195.66 | Q119: 11,927,613 | T119: 124,937,684 | U119: 4,578,211 | V119: 17,039,250 | W119: 114,583,648
A120: 1401 | B120: مهر | C120: 3040200076 | D120: صمد جوادی سلیم آباد | E120: قراردادی | F120: بندرعباس | G120: واحد عملیاتی | H120: واحد تولید | I120: مسئول تولید | J120: بتن ریزی(کارخانه) | L120: 41.78 | M120: 19,942,045 | N120: 3.33 | O120: 454,545 | T120: 110,396,590 | U120: 3,542,077 | V120: 17,039,250 | W120: 101,678,688
A121: 1401 | B121: مهر | C121: 3040210004 | D121: حسین سلیمانی | E121: قراردادی | F121: تهران | G121: واحد اداری و تشکیلاتی | H121: واحد مالی | I121: سرپرست حسابداری | J121: مالی (دفتر مرکزی) | L121: 25.21 | M121: 15,434,341 | T121: 126,616,619 | U121: 5,149,380 | V121: 17,669,250 | W121: 116,744,414
A122: 1401 | B122: مهر | C122: 3040210005 | D122: مینا بابائی | E122: قراردادی | F122: تهران | G122: واحد اداری و تشکیلاتی | H122: واحد اداری | I122: مسئول دفتر | J122: اداری (دفتر مرکزی) | L122: 14.90 | M122: 6,732,091 | O122: 0 | T122: 92,732,091 | U122: 1,760,926 | V122: 17,669,250 | W122: 86,248,340
A123: 1401 | B123: مهر | C123: 5010100004 | D123: رضا مقدسی | E123: قراردادی | F123: تهران | G123: واحد اداری و تشکیلاتی | H123: واحد مدیریت | I123: مدیرعامل | J123: مدیریت عامل(دفتر مرکزی) | M123: 0 | O123: 0 | T123: 169,043,070 | U123: 8,232,289 | V123: 49,458,996 | W123: 147,470,349
A124: 1401 | B124: آبان | C124: 3040200007 | D124: حمیدرضا حمیدی زاده | E124: قراردادی | F124: بندرعباس | G124: واحد اداری و تشکیلاتی | H124: واحد اداری | I124: مسئول خرید | J124: اداری(کارخانه) | L124: 2.06 | M124: 1,065,273 | N124: 0.00 | T124: 97,065,273 | U124: 2,180,720 | V124: 18,248,850 | W124: 90,026,488
A125: 1401 | B125: آبان | C125: 3040200009 | D125: حیدر محبوبی شمیلی | E125: قراردادی | F125: بندرعباس | G125: واحد عملیاتی | H125: واحد تولید | I125: اپراتور بچینگ | J125: بتن سازی(کارخانه) | L125: 46.51 | M125: 16,673,502 | N125: 7.58 | O125: 776,623 | T125: 97,136,141 | U125: 1,317,256 | V125: 19,731,771 | W125: 88,814,805
A126: 1401 | B126: آبان | C126: 3040200012 | D126: مهران حاجی زاده | E126: قراردادی | F126: بندرعباس | G126: واحد پشتیبانی | H126: واحد فنی و مهندسی و برنامه ریزی | I126: مدیر فنی | J126: فنی تولید (کارخانه) | L126: 44.56 | M126: 30,332,285 | N126: 13.00 | O126: 2,527,960 | R126: 2 | S126: 7,130,144 | T126: 170,302,061 | U126: 7,824,521 | V126: 23,859,456 | W126: 156,910,334
A127: 1401 | B127: آبان | C127: 3040200014 | D127: فتحعلی شفیعی زاده | E127: قراردادی | F127: بندرعباس | G127: واحد پشتیبانی | H127: واحد حراست | I127: سرپرست نگهبان | J127: حراست (کارخانه) | L127: 143.01 | M127: 45,792,041 | N127: 33.10 | O127: 3,028,052 | P127: 150.50 | Q127: 11,041,642 | T127: 133,536,295 | U127: 4,991,873 | V127: 18,248,850 | W127: 121,886,357
A128: 1401 | B128: آبان | C128: 3040200015 | D128: حسین قنبری | E128: قراردادی | F128: بندرعباس | G128: واحد عملیاتی | H128: واحد حمل و نقل | I128: راننده دانگ فنگ | J128: حمل مواد اولیه (کارخانه) | M128: 0 | T128: 41,600,000 | U128: 548,803 | V128: 7,383,675 | W128: 39,328,339
A129: 1401 | B129: آبان | C129: 3040200017 | D129: سعید دامچین | E129: قراردادی | F129: بندرعباس | G129: واحد عملیاتی | H129: واحد تولید | I129: مسئول تولید | J129: بتن ریزی(کارخانه) | L129: 80.90 | M129: 36,459,552 | N129: 27.26 | O129: 3,510,968 | T129: 129,970,520 | U129: 5,066,794 | V129: 17,669,250 | W129: 95,180,901
A130: 1401 | B130: آبان | C130: 3040200019 | D130: اسداله پدرام | E130: قراردادی | F130: بندرعباس | G130: واحد عملیاتی | H130: واحد تولید | I130: کارگر تولید | J130: آرماتور، میلگرد (کارخانه) | L130: 46.37 | M130: 15,198,839 | N130: 4.38 | O130: 408,325 | T130: 90,201,323 | U130: 658,376 | V130: 18,248,850 | W130: 82,884,882
A131: 1401 | B131: آبان | C131: 3040200020 | D131: علیرضا ادیب نیا | E131: قراردادی | F131: بندرعباس | G131: واحد عملیاتی | H131: واحد تولید | I131: راننده میکسر | J131: بتن سازی(کارخانه) | L131: 48.01 | M131: 21,389,243 | N131: 8.70 | O131: 1,107,273 | T131: 117,496,516 | U131: 4,223,845 | V131: 18,248,850 | W131: 108,414,606
A132: 1401 | B132: آبان | C132: 3040200024 | D132: حسین خنده جام | E132: قراردادی | F132: بندرعباس | G132: واحد پشتیبانی | H132: واحد حراست | I132: نگهبان | J132: حراست (کارخانه) | L132: 134.29 | M132: 40,356,944 | N132: 37.06 | O132: 3,178,083 | P132: 124.60 | Q132: 8,571,538 | T132: 118,443,128 | U132: 3,928,756 | V132: 17,039,250 | W132: 108,738,547
A133: 1401 | B133: آبان | C133: 3040200025 | D133: رضا شبانی | E133: قراردادی | F133: بندرعباس | G133: واحد پشتیبانی | H133: واحد آشپزخانه و رستوران | I133: آشپز | J133: آشپزخانه (کارخانه) | L133: 59.48 | M133: 20,078,213 | N133: 39.50 | O133: 3,789,247 | T133: 91,629,129 | U133: 1,665,330 | V133: 17,039,250 | W133: 85,387,974
A134: 1401 | B134: آبان | C134: 3040200060 | D134: رجبعلی استوار | E134: قراردادی | F134: بندرعباس | G134: واحد پشتیبانی | H134: واحد تعمیر و نگهداری PM | I134: سرویس کار ماشین آلات و تجهیزات | J134: تعمیر و نگهداری(کارخانه) | L134: 33.63 | M134: 14,412,054 | T134: 105,108,066 | U134: 2,162,574 | V134: 17,669,250 | W134: 46,422,667
A135: 1401 | B135: آبان | C135: 3040200074 | D135: محمد سالاری نودژ | E135: قراردادی | F135: بندرعباس | G135: واحد اداری و تشکیلاتی | H135: واحد انبار | I135: سرپرست انبار | J135: انبار (کارخانه) | L135: 28.36 | M135: 11,914,000 | T135: 92,914,000 | U135: 1,793,818 | V135: 17,039,250 | W135: 86,544,357
A136: 1401 | B136: آبان | C136: 3040200075 | D136: علی محبی نودژ | E136: قراردادی | F136: بندرعباس | G136: واحد پشتیبانی | H136: واحد حراست | I136: نگهبان | J136: حراست (کارخانه) | L136: 119.35 | M136: 31,745,201 | N136: 31.83 | O136: 2,419,189 | P136: 114.21 | Q136: 6,963,463 | T136: 102,105,103 | U136: 2,294,953 | V136: 17,039,250 | W136: 94,034,325
A137: 1401 | B137: آبان | C137: 3040200076 | D137: صمد جوادی سلیم آباد | E137: قراردادی | F137: بندرعباس | G137: واحد عملیاتی | H137: واحد تولید | I137: مسئول تولید | J137: بتن ریزی(کارخانه) | L137: 28.33 | M137: 13,522,727 | N137: 4.03 | O137: 550,000 | T137: 104,072,727 | U137: 2,909,690 | V137: 17,039,250 | W137: 95,987,212
A138: 1401 | B138: آبان | C138: 3040210004 | D138: حسین سلیمانی | E138: قراردادی | F138: تهران | G138: واحد اداری و تشکیلاتی | H138: واحد مالی | I138: سرپرست حسابداری | J138: مالی (دفتر مرکزی) | K138: 176.66 | L138: 35.00 | M138: 21,422,416 | T138: 132,604,694 | U138: 5,748,187 | V138: 17,669,250 | W138: 122,133,682
A139: 1401 | B139: آبان | C139: 3040210005 | D139: مینا بابائی | E139: قراردادی | F139: تهران | G139: واحد اداری و تشکیلاتی | H139: واحد اداری | I139: مسئول دفتر | J139: اداری (دفتر مرکزی) | K139: 187.58 | L139: 23.63 | M139: 10,677,970 | T139: 96,677,970 | U139: 2,155,515 | V139: 17,669,250 | W139: 89,799,630
A140: 1401 | B140: آبان | C140: 5010100004 | D140: رضا مقدسی | E140: قراردادی | F140: تهران | G140: واحد اداری و تشکیلاتی | H140: واحد مدیریت | I140: مدیرعامل | J140: مدیریت عامل(دفتر مرکزی) | M140: 0 | T140: 169,043,070 | U140: 8,232,288 | V140: 49,458,996 | W140: 147,470,350
A141: 1401 | B141: آبان | C141: 304 | D141: شاملو | F141: بندرعباس | G141: واحد پشتیبانی | H141: واحد فنی و مهندسی و برنامه ریزی | I141: کارشناس فنی | J141: قالب سازی(کارخانه) | T141: 100,000,000 | W141: 100,000,000
A142: جمع | C142: =SUBTOTAL(103,Table1[کد پرسنلی]) -> 140 | K142: =SUBTOTAL(109,Table1[کارکرد (ساعت)]) -> 364.24 | L142: =SUBTOTAL(109,Table1[اضافه کاری (ساعت)]) -> 7654.49 | M142: =SUBTOTAL(109,Table1[مبلغ اضافه کاری]) -> 3,045,671,186 | N142: =SUBTOTAL(109,Table1[جمعه کاری + تعطیل کاری (ساعت)]) -> 2,644.38 | O142: =SUBTOTAL(109,Table1[مبلغ جمعه کاری + تعطیل کاری]) -> 465,536,117 | P142: =SUBTOTAL(109,Table1[شب کاری (ساعت)]) -> 2,818.24 | Q142: =SUBTOTAL(109,Table1[مبلغ شب کاری]) -> 191,313,245 | R142: =SUBTOTAL(109,Table1[ماموریت (روزانه)]) -> 22 | S142: =SUBTOTAL(109,Table1[مبلغ حق ماموریت]) -> 99,860,019 | T142: =SUBTOTAL(109,Table1[جمع حقوق و مزایا]) -> 16,794,078,507 | U142: =SUBTOTAL(109,Table1[مالیات]) -> 555,327,177 | V142: =SUBTOTAL(109,Table1[بیمه]) -> 2,823,609,679 | W142: =SUBTOTAL(109,Table1[حقوق پرداختنی (خالص)]) -> 15,327,909,034

Sheet calc
C1: حقوق پرداختنی:
Q2: =IFERROR(OFFSET(#REF!,SMALL(#REF!,ROW(B1))-1,0),"") -> 
C3: بندرعباس | Q3: =IFERROR(OFFSET(#REF!,SMALL(#REF!,ROW(B2))-1,0),"") -> 
C4: مرکز هزینه | D4: تعداد نفرات | E4: درصد (تعداد نفرات) | F4: جمع پرداختی | G4: درصد(جمع پرداختی) | J4: مرکز هزینه | K4: درپوش پایین | L4: لیبل | M4: مقدار واقعی | N4: ترنسپرنت | O4: درپوش بالا | Q4: =IFERROR(OFFSET(#REF!,SMALL(#REF!,ROW(B3))-1,0),"") -> 
C5: حراست (کارخانه) | D5: =COUNTIFS(database!$F:$F,$C$3,database!$J:$J,calc!C5,database!$B:$B,listbox!$D$3,database!$A:$A,listbox!$B$3) -> 3 | E5: =D5/$D$23 -> 21% | F5: =SUMIFS(database!$W:$W,database!$F:$F,calc!$C$3,database!$J:$J,calc!C5,database!$B:$B,listbox!$D$3,database!$A:$A,listbox!$B$3) -> 352,027,163 | G5: =F5/$F$23 -> 25% | J5: =C5 -> حراست (کارخانه) | K5: 5% | L5: 20% | M5: =G5 -> 25% | N5: =1-M5 -> 75% | O5: 15% | Q5: =IFERROR(OFFSET(#REF!,SMALL(#REF!,ROW(B4))-1,0),"") -> 
C6: آشپزخانه (کارخانه) | D6: =COUNTIFS(database!$F:$F,$C$3,database!$J:$J,calc!C6,database!$B:$B,listbox!$D$3,database!$A:$A,listbox!$B$3) -> 1 | E6: =D6/$D$23 -> 7% | F6: =SUMIFS(database!$W:$W,database!$F:$F,calc!$C$3,database!$J:$J,calc!C6,database!$B:$B,listbox!$D$3,database!$A:$A,listbox!$B$3) -> 75,374,246 | G6: 5% | J6: آشپزخانه (کارخانه) | K6: 5% | L6: 20% | M6: =G6 -> 5% | N6: =1-M6 -> 95% | O6: 15% | Q6: =IFERROR(OFFSET(#REF!,SMALL(#REF!,ROW(B5))-1,0),"") -> 
C7: تدارکات (کارخانه) | D7: =COUNTIFS(database!$F:$F,$C$3,database!$J:$J,calc!C7,database!$B:$B,listbox!$D$3,database!$A:$A,listbox!$B$3) -> 0 | E7: 0% | F7: =SUMIFS(database!$W:$W,database!$F:$F,calc!$C$3,database!$J:$J,calc!C7,database!$B:$B,listbox!$D$3,database!$A:$A,listbox!$B$3) -> 0 | G7: 0% | J7: تدارکات (کارخانه) | K7: 5% | L7: 20% | M7: 0% | N7: 100% | O7: 15% | Q7: =IFERROR(OFFSET(#REF!,SMALL(#REF!,ROW(B6))-1,0),"") -> 
C8: انبار (کارخانه) | D8: =COUNTIFS(database!$F:$F,$C$3,database!$J:$J,calc!C8,database!$B:$B,listbox!$D$3,database!$A:$A,listbox!$B$3) -> 1 | E8: 7% | F8: =SUMIFS(database!$W:$W,database!$F:$F,calc!$C$3,database!$J:$J,calc!C8,database!$B:$B,listbox!$D$3,database!$A:$A,listbox!$B$3) -> 65,125,056 | G8: 5% | J8: انبار (کارخانه) | K8: 5% | L8: 20% | M8: =G8 -> 5% | N8: 95% | O8: 15%
C9: تاسیسات (کارخانه) | D9: =COUNTIFS(database!$F:$F,$C$3,database!$J:$J,calc!C9,database!$B:$B,listbox!$D$3,database!$A:$A,listbox!$B$3) -> 0 | E9: 0% | F9: =SUMIFS(database!$W:$W,database!$F:$F,calc!$C$3,database!$J:$J,calc!C9,database!$B:$B,listbox!$D$3,database!$A:$A,listbox!$B$3) -> 0 | G9: 0% | J9: تاسیسات (کارخانه) | K9: 5% | L9: 20% | M9: 0% | N9: 100% | O9: 15% | Q9: =IFERROR(OFFSET(#REF!,SMALL(#REF!,ROW(B8))-1,0),"") -> 
C10: فنی تولید (کارخانه) | D10: =COUNTIFS(database!$F:$F,$C$3,database!$J:$J,calc!C10,database!$B:$B,listbox!$D$3,database!$A:$A,listbox!$B$3) -> 1 | E10: 7% | F10: =SUMIFS(database!$W:$W,database!$F:$F,calc!$C$3,database!$J:$J,calc!C10,database!$B:$B,listbox!$D$3,database!$A:$A,listbox!$B$3) -> 140,062,731 | G10: 10% | J10: فنی تولید (کارخانه) | K10: 5% | L10: 20% | M10: 10% | N10: 90% | O10: 15% | Q10: =IFERROR(OFFSET(#REF!,SMALL(#REF!,ROW(B9))-1,0),"") -> 
C11: تعمیر و نگهداری(کارخانه) | D11: =COUNTIFS(database!$F:$F,$C$3,database!$J:$J,calc!C11,database!$B:$B,listbox!$D$3,database!$A:$A,listbox!$B$3) -> 1 | E11: 7% | F11: =SUMIFS(database!$W:$W,database!$F:$F,calc!$C$3,database!$J:$J,calc!C11,database!$B:$B,listbox!$D$3,database!$A:$A,listbox!$B$3) -> 97,877,450 | G11: 7% | J11: تعمیر و نگهداری(کارخانه) | K11: 5% | L11: 20% | M11: 7% | N11: 93% | O11: 15% | Q11: =IFERROR(OFFSET(#REF!,SMALL(#REF!,ROW(B10))-1,0),"") -> 
C12: QC و کنترل کیفیت(کارخانه) | D12: =COUNTIFS(database!$F:$F,$C$3,database!$J:$J,calc!C12,database!$B:$B,listbox!$D$3,database!$A:$A,listbox!$B$3) -> 0 | E12: 0% | F12: =SUMIFS(database!$W:$W,database!$F:$F,calc!$C$3,database!$J:$J,calc!C12,database!$B:$B,listbox!$D$3,database!$A:$A,listbox!$B$3) -> 0 | G12: 0% | J12: QC و کنترل کیفیت(کارخانه) | K12: 5% | L12: 20% | M12: 0% | N12: 100% | O12: 15% | Q12: =IFERROR(OFFSET(#REF!,SMALL(#REF!,ROW(B11))-1,0),"") -> 
C13: حمل مواد اولیه (کارخانه) | D13: =COUNTIFS(database!$F:$F,$C$3,database!$J:$J,calc!C13,database!$B:$B,listbox!$D$3,database!$A:$A,listbox!$B$3) -> 1 | E13: 7% | F13: =SUMIFS(database!$W:$W,database!$F:$F,calc!$C$3,database!$J:$J,calc!C13,database!$B:$B,listbox!$D$3,database!$A:$A,listbox!$B$3) -> 95,005,580 | G13: 7% | J13: حمل مواد اولیه (کارخانه) | K13: 5% | L13: 20% | M13: 7% | N13: 93% | O13: 15% | Q13: =IFERROR(OFFSET(#REF!,SMALL(#REF!,ROW(B12))-1,0),"") -> 
C14: حمل محصولات و سایر(کارخانه) | D14: =COUNTIFS(database!$F:$F,$C$3,database!$J:$J,calc!C14,database!$B:$B,listbox!$D$3,database!$A:$A,listbox!$B$3) -> 0 | E14: 0% | F14: =SUMIFS(database!$W:$W,database!$F:$F,calc!$C$3,database!$J:$J,calc!C14,database!$B:$B,listbox!$D$3,database!$A:$A,listbox!$B$3) -> 0 | G14: 0% | J14: حمل محصولات و سایر(کارخانه) | K14: 5% | L14: 20% | M14: 0% | N14: 100% | O14: 15% | Q14: =IFERROR(OFFSET(#REF!,SMALL(#REF!,ROW(B13))-1,0),"") -> 
C15: قالب سازی(کارخانه) | D15: =COUNTIFS(database!$F:$F,$C$3,database!$J:$J,calc!C15,database!$B:$B,listbox!$D$3,database!$A:$A,listbox!$B$3) -> 0 | E15: 0% | F15: =SUMIFS(database!$W:$W,database!$F:$F,calc!$C$3,database!$J:$J,calc!C15,database!$B:$B,listbox!$D$3,database!$A:$A,listbox!$B$3) -> 0 | G15: 0% | J15: قالب سازی(کارخانه) | K15: 5% | L15: 20% | M15: 0% | N15: 100% | O15: 15% | Q15: =IFERROR(OFFSET(#REF!,SMALL(#REF!,ROW(B14))-1,0),"") -> 
C16: بتن سازی(کارخانه) | D16: =COUNTIFS(database!$F:$F,$C$3,database!$J:$J,calc!C16,database!$B:$B,listbox!$D$3,database!$A:$A,listbox!$B$3) -> 2 | E16: 14% | F16: =SUMIFS(database!$W:$W,database!$F:$F,calc!$C$3,database!$J:$J,calc!C16,database!$B:$B,listbox!$D$3,database!$A:$A,listbox!$B$3) -> 193,727,362 | G16: 14% | J16: بتن سازی(کارخانه) | K16: 5% | L16: 20% | M16: 14% | N16: 86% | O16: 15% | Q16: =IFERROR(OFFSET(#REF!,SMALL(#REF!,ROW(B15))-1,0),"") -> 
C17: بتن ریزی(کارخانه) | D17: =COUNTIFS(database!$F:$F,$C$3,database!$J:$J,calc!C17,database!$B:$B,listbox!$D$3,database!$A:$A,listbox!$B$3) -> 2 | E17: 14% | F17: =SUMIFS(database!$W:$W,database!$F:$F,calc!$C$3,database!$J:$J,calc!C17,database!$B:$B,listbox!$D$3,database!$A:$A,listbox!$B$3) -> 201,383,877 | G17: 14% | J17: بتن ریزی(کارخانه) | K17: 5% | L17: 20% | M17: 14% | N17: 86% | O17: 15% | Q17: =IFERROR(OFFSET(#REF!,SMALL(#REF!,ROW(B16))-1,0),"") -> 
C18: آرماتور، میلگرد (کارخانه) | D18: =COUNTIFS(database!$F:$F,$C$3,database!$J:$J,calc!C18,database!$B:$B,listbox!$D$3,database!$A:$A,listbox!$B$3) -> 1 | E18: 7% | F18: =SUMIFS(database!$W:$W,database!$F:$F,calc!$C$3,database!$J:$J,calc!C18,database!$B:$B,listbox!$D$3,database!$A:$A,listbox!$B$3) -> 78,876,171 | G18: 6% | J18: آرماتور، میلگرد (کارخانه) | K18: 5% | L18: 20% | M18: 6% | N18: 94% | O18: 15% | Q18: =IFERROR(OFFSET(#REF!,SMALL(#REF!,ROW(B17))-1,0),"") -> 
C19: کیورینگ(کارخانه) | D19: =COUNTIFS(database!$F:$F,$C$3,database!$J:$J,calc!C19,database!$B:$B,listbox!$D$3,database!$A:$A,listbox!$B$3) -> 0 | E19: 0% | F19: =SUMIFS(database!$W:$W,database!$F:$F,calc!$C$3,database!$J:$J,calc!C19,database!$B:$B,listbox!$D$3,database!$A:$A,listbox!$B$3) -> 0 | G19: 0% | J19: کیورینگ(کارخانه) | K19: 5% | L19: 20% | M19: 0% | N19: 100% | O19: 15% | Q19: =IFERROR(OFFSET(#REF!,SMALL(#REF!,ROW(B18))-1,0),"") -> 
C20: مدیریت(کارخانه) | D20: =COUNTIFS(database!$F:$F,$C$3,database!$J:$J,calc!C20,database!$B:$B,listbox!$D$3,database!$A:$A,listbox!$B$3) -> 0 | E20: 0% | F20: =SUMIFS(database!$W:$W,database!$F:$F,calc!$C$3,database!$J:$J,calc!C20,database!$B:$B,listbox!$D$3,database!$A:$A,listbox!$B$3) -> 0 | G20: 0% | J20: مدیریت(کارخانه) | K20: 5% | L20: 20% | M20: 0% | N20: 100% | O20: 15%
C21: اداری(کارخانه) | D21: =COUNTIFS(database!$F:$F,$C$3,database!$J:$J,calc!C21,database!$B:$B,listbox!$D$3,database!$A:$A,listbox!$B$3) -> 1 | E21: 7% | F21: =SUMIFS(database!$W:$W,database!$F:$F,calc!$C$3,database!$J:$J,calc!C21,database!$B:$B,listbox!$D$3,database!$A:$A,listbox!$B$3) -> 116,083,903 | G21: 8% | J21: اداری(کارخانه) | K21: 5% | L21: 20% | M21: 8% | N21: 92% | O21: 15%
C22: توزیع و فروش | D22: =COUNTIFS(database!$F:$F,$C$3,database!$J:$J,calc!C22,database!$B:$B,listbox!$D$3,database!$A:$A,listbox!$B$3) -> 0 | E22: 0% | F22: =SUMIFS(database!$W:$W,database!$F:$F,calc!$C$3,database!$J:$J,calc!C22,database!$B:$B,listbox!$D$3,database!$A:$A,listbox!$B$3) -> 0 | G22: 0% | J22: توزیع و فروش | K22: 5% | L22: 20% | M22: 0% | N22: 100% | O22: 15%
C23: جمع | D23: =SUM(D5:D22) -> 14 | E23: =SUM(E5:E22) -> 100% | F23: =SUM(F5:F22) -> 1,415,543,539 | G23: =SUM(G5:G22) -> 100%
C26: تهران
C27: مرکز هزینه | D27: تعداد نفرات | E27: درصد (تعداد نفرات) | F27: جمع پرداختی | G27: درصد(جمع پرداختی) | J27: مرکز هزینه | K27: درپوش پایین | L27: لیبل | M27: مقدار واقعی | N27: ترنسپرنت | O27: درپوش بالا
C28: آشپزخانه(دفتر مرکزی) | D28: =COUNTIFS(database!$F:$F,$C$26,database!$J:$J,calc!C28,database!$B:$B,listbox!$D$3,database!$A:$A,listbox!$B$3) -> 0 | E28: =D28/$D$36 -> 0% | F28: =SUMIFS(database!$W:$W,database!$F:$F,calc!$C$26,database!$J:$J,calc!C28,database!$B:$B,listbox!$D$3,database!$A:$A,listbox!$B$3) -> 0 | G28: =F28/$F$36 -> 0% | J28: =C28 -> آشپزخانه(دفتر مرکزی) | K28: 5% | L28: 20% | M28: =G28 -> 0% | N28: =1-M28 -> 100% | O28: 15%
C29: تدارکات(دفتر مرکزی) | D29: =COUNTIFS(database!$F:$F,$C$26,database!$J:$J,calc!C29,database!$B:$B,listbox!$D$3,database!$A:$A,listbox!$B$3) -> 1 | E29: 25% | F29: =SUMIFS(database!$W:$W,database!$F:$F,calc!$C$26,database!$J:$J,calc!C29,database!$B:$B,listbox!$D$3,database!$A:$A,listbox!$B$3) -> 99,922,769 | G29: 21% | J29: تدارکات(دفتر مرکزی) | K29: 5% | L29: 20% | M29: 21% | N29: =1-M29 -> 79% | O29: 15%
C30: بازرگانی(دفتر مرکزی) | D30: =COUNTIFS(database!$F:$F,$C$26,database!$J:$J,calc!C30,database!$B:$B,listbox!$D$3,database!$A:$A,listbox!$B$3) -> 0 | E30: 0% | F30: =SUMIFS(database!$W:$W,database!$F:$F,calc!$C$26,database!$J:$J,calc!C30,database!$B:$B,listbox!$D$3,database!$A:$A,listbox!$B$3) -> 0 | G30: 0% | J30: بازرگانی(دفتر مرکزی) | K30: 5% | L30: 20% | M30: 0% | N30: 100% | O30: 15%
C31: فنی(دفتر مرکزی) | D31: =COUNTIFS(database!$F:$F,$C$26,database!$J:$J,calc!C31,database!$B:$B,listbox!$D$3,database!$A:$A,listbox!$B$3) -> 0 | E31: 0% | F31: =SUMIFS(database!$W:$W,database!$F:$F,calc!$C$26,database!$J:$J,calc!C31,database!$B:$B,listbox!$D$3,database!$A:$A,listbox!$B$3) -> 0 | G31: 0% | J31: فنی(دفتر مرکزی) | K31: 5% | L31: 20% | M31: 0% | N31: 100% | O31: 15%
C32: مدیریت عامل(دفتر مرکزی) | D32: =COUNTIFS(database!$F:$F,$C$26,database!$J:$J,calc!C32,database!$B:$B,listbox!$D$3,database!$A:$A,listbox!$B$3) -> 1 | E32: 25% | F32: =SUMIFS(database!$W:$W,database!$F:$F,calc!$C$26,database!$J:$J,calc!C32,database!$B:$B,listbox!$D$3,database!$A:$A,listbox!$B$3) -> 159,695,841 | G32: 34% | J32: مدیریت عامل(دفتر مرکزی) | K32: 5% | L32: 20% | M32: 34% | N32: 66% | O32: 15%
C33: هیئت مدیره(دفترمرکزی) | D33: =COUNTIFS(database!$F:$F,$C$26,database!$J:$J,calc!C33,database!$B:$B,listbox!$D$3,database!$A:$A,listbox!$B$3) -> 0 | E33: 0% | F33: =SUMIFS(database!$W:$W,database!$F:$F,calc!$C$26,database!$J:$J,calc!C33,database!$B:$B,listbox!$D$3,database!$A:$A,listbox!$B$3) -> 0 | G33: 0% | J33: هیئت مدیره(دفترمرکزی) | K33: 5% | L33: 20% | M33: 0% | N33: 100% | O33: 15%
C34: مالی (دفتر مرکزی) | D34: =COUNTIFS(database!$F:$F,$C$26,database!$J:$J,calc!C34,database!$B:$B,listbox!$D$3,database!$A:$A,listbox!$B$3) -> 1 | E34: 25% | F34: =SUMIFS(database!$W:$W,database!$F:$F,calc!$C$26,database!$J:$J,calc!C34,database!$B:$B,listbox!$D$3,database!$A:$A,listbox!$B$3) -> 125,187,267 | G34: 26% | J34: مالی (دفتر مرکزی) | K34: 5% | L34: 20% | M34: 26% | N34: 74% | O34: 15%
C35: اداری (دفتر مرکزی) | D35: =COUNTIFS(database!$F:$F,$C$26,database!$J:$J,calc!C35,database!$B:$B,listbox!$D$3,database!$A:$A,listbox!$B$3) -> 1 | E35: 25% | F35: =SUMIFS(database!$W:$W,database!$F:$F,calc!$C$26,database!$J:$J,calc!C35,database!$B:$B,listbox!$D$3,database!$A:$A,listbox!$B$3) -> 88,479,518 | G35: 19% | J35: اداری (دفتر مرکزی) | K35: 5% | L35: 20% | M35: 19% | N35: 81% | O35: 15%
C36: جمع | D36: =SUM(D28:D35) -> 4 | E36: =SUM(E28:E35) -> 100% | F36: =SUM(F28:F35) -> 473,285,395 | G36: =SUM(G28:G35) -> 100%
C39: کل
C40: مرکز هزینه | D40: تعداد نفرات | E40: درصد (تعداد نفرات) | F40: جمع پرداختی | G40: درصد(جمع پرداختی) | J40: شهر | K40: درپوش پایین | L40: لیبل | M40: مقدار واقعی | N40: ترنسپرنت | O40: درپوش بالا
C41: بندرعباس | D41: =COUNTIFS(database!$F:$F,calc!C41,database!$B:$B,listbox!$D$3,database!$A:$A,listbox!$B$3) -> 14 | E41: =D41/$D$43 -> 78% | F41: =$F$23 -> 1,415,543,539 | G41: =F41/$F$43 -> 75% | J41: =C41 -> بندرعباس | K41: 5% | L41: 20% | M41: =G41 -> 75% | N41: =1-M41 -> 25% | O41: 15%
C42: تهران | D42: =COUNTIFS(database!$F:$F,calc!C42,database!$B:$B,listbox!$D$3,database!$A:$A,listbox!$B$3) -> 4 | E42: =D42/$D$43 -> 22% | F42: =$F$36 -> 473,285,395 | G42: =F42/$F$43 -> 25% | J42: =C42 -> تهران | K42: 5% | L42: 20% | M42: =G42 -> 25% | N42: =1-M42 -> 75% | O42: 15%
C43: جمع | D43: =SUM(D41:D42) -> 18 | E43: =SUM(E41:E42) -> 100% | F43: =SUM(F41:F42) -> 1,888,828,934 | G43: =SUM(G41:G42) -> 100%
C47: اضافه کاری:
C49: بندرعباس
C50: مرکز هزینه | D50: ساعت اضافه کاری | E50: درصد | F50: جمع پرداختی | G50: درصد(جمع پرداختی) | J50: سرانه ساعت | K50: درصد سرانه | L50: سرانه پرداختی | M50: درصد سرانه پرداختی
C51: حراست (کارخانه) | D51: =SUMIFS(database!$L:$L,database!$F:$F,calc!$C$49,database!$J:$J,calc!C51,database!$B:$B,listbox!$D$3,database!$A:$A,listbox!$B$3) -> 387.87 | E51: =D51/$D$69 -> 65% | F51: =SUMIFS(database!$M:$M,database!$F:$F,calc!$C$49,database!$J:$J,calc!C51,database!$B:$B,listbox!$D$3,database!$A:$A,listbox!$B$3) -> 114,758,523 | G51: =F51/$F$69 -> 45.55% | J51: =IFERROR(test3[[#This Row],[ساعت اضافه کاری]]/D5,"") -> 129 | K51: =IFERROR(J51/$J$69,"") -> 45% | L51: =IFERROR(test3[[#This Row],[جمع پرداختی]]/D5,"") -> 38,252,841 | M51: =IFERROR(L51/$L$69,"") -> 26%
C52: آشپزخانه (کارخانه) | D52: =SUMIFS(database!$L:$L,database!$F:$F,calc!$C$49,database!$J:$J,calc!C52,database!$B:$B,listbox!$D$3,database!$A:$A,listbox!$B$3) -> 26.23 | E52: =D52/$D$69 -> 4% | F52: =SUMIFS(database!$M:$M,database!$F:$F,calc!$C$49,database!$J:$J,calc!C52,database!$B:$B,listbox!$D$3,database!$A:$A,listbox!$B$3) -> 8,808,001 | G52: =F52/$F$69 -> 3.50% | J52: =IFERROR(test3[[#This Row],[ساعت اضافه کاری]]/D6,"") -> 26 | K52: =IFERROR(J52/$J$69,"") -> 9% | L52: =IFERROR(test3[[#This Row],[جمع پرداختی]]/D6,"") -> 8,808,001 | M52: =IFERROR(L52/$L$69,"") -> 6%
C53: تدارکات (کارخانه) | D53: =SUMIFS(database!$L:$L,database!$F:$F,calc!$C$49,database!$J:$J,calc!C53,database!$B:$B,listbox!$D$3,database!$A:$A,listbox!$B$3) -> 0 | E53: 0% | F53: =SUMIFS(database!$M:$M,database!$F:$F,calc!$C$49,database!$J:$J,calc!C53,database!$B:$B,listbox!$D$3,database!$A:$A,listbox!$B$3) -> 0 | G53: 0% | J53: =IFERROR(test3[[#This Row],[ساعت اضافه کاری]]/D7,"") ->  | L53: =IFERROR(test3[[#This Row],[جمع پرداختی]]/D7,"") -> 
C54: انبار (کارخانه) | D54: =SUMIFS(database!$L:$L,database!$F:$F,calc!$C$49,database!$J:$J,calc!C54,database!$B:$B,listbox!$D$3,database!$A:$A,listbox!$B$3) -> 26.88 | E54: 5% | F54: =SUMIFS(database!$M:$M,database!$F:$F,calc!$C$49,database!$J:$J,calc!C54,database!$B:$B,listbox!$D$3,database!$A:$A,listbox!$B$3) -> 7,698,409 | G54: 3.06% | J54: =IFERROR(test3[[#This Row],[ساعت اضافه کاری]]/D8,"") -> 27 | K54: 9% | L54: =IFERROR(test3[[#This Row],[جمع پرداختی]]/D8,"") -> 7,698,409 | M54: 5%
C55: تاسیسات (کارخانه) | D55: =SUMIFS(database!$L:$L,database!$F:$F,calc!$C$49,database!$J:$J,calc!C55,database!$B:$B,listbox!$D$3,database!$A:$A,listbox!$B$3) -> 0 | E55: 0% | F55: =SUMIFS(database!$M:$M,database!$F:$F,calc!$C$49,database!$J:$J,calc!C55,database!$B:$B,listbox!$D$3,database!$A:$A,listbox!$B$3) -> 0 | G55: 0% | J55: =IFERROR(test3[[#This Row],[ساعت اضافه کاری]]/D9,"") ->  | L55: =IFERROR(test3[[#This Row],[جمع پرداختی]]/D9,"") -> 
C56: فنی تولید (کارخانه) | D56: =SUMIFS(database!$L:$L,database!$F:$F,calc!$C$49,database!$J:$J,calc!C56,database!$B:$B,listbox!$D$3,database!$A:$A,listbox!$B$3) -> 0 | E56: 0% | F56: =SUMIFS(database!$M:$M,database!$F:$F,calc!$C$49,database!$J:$J,calc!C56,database!$B:$B,listbox!$D$3,database!$A:$A,listbox!$B$3) -> 18,648,570 | G56: 7.40% | J56: =IFERROR(test3[[#This Row],[ساعت اضافه کاری]]/D10,"") -> 0 | K56: 0% | L56: =IFERROR(test3[[#This Row],[جمع پرداختی]]/D10,"") -> 18,648,570 | M56: 13%
C57: تعمیر و نگهداری(کارخانه) | D57: =SUMIFS(database!$L:$L,database!$F:$F,calc!$C$49,database!$J:$J,calc!C57,database!$B:$B,listbox!$D$3,database!$A:$A,listbox!$B$3) -> 26.18 | E57: 4% | F57: =SUMIFS(database!$M:$M,database!$F:$F,calc!$C$49,database!$J:$J,calc!C57,database!$B:$B,listbox!$D$3,database!$A:$A,listbox!$B$3) -> 11,219,691 | G57: 4.45% | J57: =IFERROR(test3[[#This Row],[ساعت اضافه کاری]]/D11,"") -> 26 | K57: 9% | L57: =IFERROR(test3[[#This Row],[جمع پرداختی]]/D11,"") -> 11,219,691 | M57: 8%
C58: QC و کنترل کیفیت (کارخانه) | D58: =SUMIFS(database!$L:$L,database!$F:$F,calc!$C$49,database!$J:$J,calc!C58,database!$B:$B,listbox!$D$3,database!$A:$A,listbox!$B$3) -> 0 | E58: 0% | F58: =SUMIFS(database!$M:$M,database!$F:$F,calc!$C$49,database!$J:$J,calc!C58,database!$B:$B,listbox!$D$3,database!$A:$A,listbox!$B$3) -> 0 | G58: 0% | J58: =IFERROR(test3[[#This Row],[ساعت اضافه کاری]]/D12,"") ->  | L58: =IFERROR(test3[[#This Row],[جمع پرداختی]]/D12,"") -> 
C59: حمل مواد اولیه (کارخانه) | D59: =SUMIFS(database!$L:$L,database!$F:$F,calc!$C$49,database!$J:$J,calc!C59,database!$B:$B,listbox!$D$3,database!$A:$A,listbox!$B$3) -> 5.18 | E59: 1% | F59: =SUMIFS(database!$M:$M,database!$F:$F,calc!$C$49,database!$J:$J,calc!C59,database!$B:$B,listbox!$D$3,database!$A:$A,listbox!$B$3) -> 2,396,036 | G59: 1% | J59: =IFERROR(test3[[#This Row],[ساعت اضافه کاری]]/D13,"") -> 5 | K59: 2% | L59: =IFERROR(test3[[#This Row],[جمع پرداختی]]/D13,"") -> 2,396,036 | M59: 2%
C60: حمل محصولات و سایر (کارخانه) | D60: =SUMIFS(database!$L:$L,database!$F:$F,calc!$C$49,database!$J:$J,calc!C60,database!$B:$B,listbox!$D$3,database!$A:$A,listbox!$B$3) -> 0 | E60: 0% | F60: =SUMIFS(database!$M:$M,database!$F:$F,calc!$C$49,database!$J:$J,calc!C60,database!$B:$B,listbox!$D$3,database!$A:$A,listbox!$B$3) -> 0 | G60: 0% | J60: =IFERROR(test3[[#This Row],[ساعت اضافه کاری]]/D14,"") ->  | L60: =IFERROR(test3[[#This Row],[جمع پرداختی]]/D14,"") -> 
C61: قالب سازی(کارخانه) | D61: =SUMIFS(database!$L:$L,database!$F:$F,calc!$C$49,database!$J:$J,calc!C61,database!$B:$B,listbox!$D$3,database!$A:$A,listbox!$B$3) -> 0 | E61: 0% | F61: =SUMIFS(database!$M:$M,database!$F:$F,calc!$C$49,database!$J:$J,calc!C61,database!$B:$B,listbox!$D$3,database!$A:$A,listbox!$B$3) -> 0 | G61: 0% | J61: =IFERROR(test3[[#This Row],[ساعت اضافه کاری]]/D15,"") ->  | L61: =IFERROR(test3[[#This Row],[جمع پرداختی]]/D15,"") -> 
C62: بتن سازی(کارخانه) | D62: =SUMIFS(database!$L:$L,database!$F:$F,calc!$C$49,database!$J:$J,calc!C62,database!$B:$B,listbox!$D$3,database!$A:$A,listbox!$B$3) -> 37 | E62: 6% | F62: =SUMIFS(database!$M:$M,database!$F:$F,calc!$C$49,database!$J:$J,calc!C62,database!$B:$B,listbox!$D$3,database!$A:$A,listbox!$B$3) -> 28,149,088 | G62: 11.17% | J62: =IFERROR(test3[[#This Row],[ساعت اضافه کاری]]/D16,"") -> 19 | K62: 6% | L62: =IFERROR(test3[[#This Row],[جمع پرداختی]]/D16,"") -> 14,074,544 | M62: 10%
C63: بتن ریزی(کارخانه) | D63: =SUMIFS(database!$L:$L,database!$F:$F,calc!$C$49,database!$J:$J,calc!C63,database!$B:$B,listbox!$D$3,database!$A:$A,listbox!$B$3) -> 65.74 | E63: 11% | F63: =SUMIFS(database!$M:$M,database!$F:$F,calc!$C$49,database!$J:$J,calc!C63,database!$B:$B,listbox!$D$3,database!$A:$A,listbox!$B$3) -> 29,904,027 | G63: 11.87% | J63: =IFERROR(test3[[#This Row],[ساعت اضافه کاری]]/D17,"") -> 33 | K63: 11% | L63: =IFERROR(test3[[#This Row],[جمع پرداختی]]/D17,"") -> 14,952,014 | M63: 10%
C64: آرماتور، میلگرد (کارخانه) | D64: =SUMIFS(database!$L:$L,database!$F:$F,calc!$C$49,database!$J:$J,calc!C64,database!$B:$B,listbox!$D$3,database!$A:$A,listbox!$B$3) -> 21.17 | E64: 4% | F64: =SUMIFS(database!$M:$M,database!$F:$F,calc!$C$49,database!$J:$J,calc!C64,database!$B:$B,listbox!$D$3,database!$A:$A,listbox!$B$3) -> 6,939,191 | G64: 2.75% | J64: =IFERROR(test3[[#This Row],[ساعت اضافه کاری]]/D18,"") -> 21 | K64: 7% | L64: =IFERROR(test3[[#This Row],[جمع پرداختی]]/D18,"") -> 6,939,191 | M64: 5%
C65: کیورینگ(کارخانه) | D65: =SUMIFS(database!$L:$L,database!$F:$F,calc!$C$49,database!$J:$J,calc!C65,database!$B:$B,listbox!$D$3,database!$A:$A,listbox!$B$3) -> 0 | E65: 0% | F65: =SUMIFS(database!$M:$M,database!$F:$F,calc!$C$49,database!$J:$J,calc!C65,database!$B:$B,listbox!$D$3,database!$A:$A,listbox!$B$3) -> 0 | G65: 0% | J65: =IFERROR(test3[[#This Row],[ساعت اضافه کاری]]/D19,"") ->  | L65: =IFERROR(test3[[#This Row],[جمع پرداختی]]/D19,"") -> 
C66: مدیریت(کارخانه) | D66: =SUMIFS(database!$L:$L,database!$F:$F,calc!$C$49,database!$J:$J,calc!C66,database!$B:$B,listbox!$D$3,database!$A:$A,listbox!$B$3) -> 0 | E66: 0% | F66: =SUMIFS(database!$M:$M,database!$F:$F,calc!$C$49,database!$J:$J,calc!C66,database!$B:$B,listbox!$D$3,database!$A:$A,listbox!$B$3) -> 0 | G66: 0% | J66: =IFERROR(test3[[#This Row],[ساعت اضافه کاری]]/D20,"") ->  | L66: =IFERROR(test3[[#This Row],[جمع پرداختی]]/D20,"") -> 
C67: اداری(کارخانه) | D67: =SUMIFS(database!$L:$L,database!$F:$F,calc!$C$49,database!$J:$J,calc!C67,database!$B:$B,listbox!$D$3,database!$A:$A,listbox!$B$3) -> 0 | E67: =D67/$D$69 -> 0% | F67: =SUMIFS(database!$M:$M,database!$F:$F,calc!$C$49,database!$J:$J,calc!C67,database!$B:$B,listbox!$D$3,database!$A:$A,listbox!$B$3) -> 23,444,591 | G67: =F67/$F$69 -> 9.30% | J67: =IFERROR(test3[[#This Row],[ساعت اضافه کاری]]/D21,"") -> 0 | K67: 0% | L67: =IFERROR(test3[[#This Row],[جمع پرداختی]]/D21,"") -> 23,444,591 | M67: 16%
C68: توزیع و فروش | D68: =SUMIFS(database!$L:$L,database!$F:$F,calc!$C$49,database!$J:$J,calc!C68,database!$B:$B,listbox!$D$3,database!$A:$A,listbox!$B$3) -> 0 | E68: 0% | F68: =SUMIFS(database!$M:$M,database!$F:$F,calc!$C$49,database!$J:$J,calc!C68,database!$B:$B,listbox!$D$3,database!$A:$A,listbox!$B$3) -> 0 | G68: 0% | J68: =IFERROR(test3[[#This Row],[ساعت اضافه کاری]]/D22,"") ->  | L68: =IFERROR(test3[[#This Row],[جمع پرداختی]]/D22,"") -> 
C69: جمع | D69: =SUM(D51:D68) -> 596.25 | E69: =SUM(E51:E68) -> 100% | F69: =SUM(F51:F68) -> 251,966,127 | G69: =SUM(G51:G68) -> 100% | J69: =SUM(J51:J68) -> 286.30 | K69: =SUM(K51:K68) -> 100% | L69: =SUM(L51:L68) -> 146,433,888 | M69: =SUM(M51:M68) -> 100%
C72: تهران
C73: مرکز هزینه | D73: ساعت اضافه کاری | E73: درصد | F73: جمع پرداختی | G73: درصد(جمع پرداختی) | J73: سرانه ساعت | K73: درصد سرانه | L73: سرانه پرداختی | M73: درصد سرانه پرداختی
C74: آشپزخانه(دفتر مرکزی) | D74: =SUMIFS(database!$L:$L,database!$F:$F,calc!$C$72,database!$J:$J,calc!C74,database!$B:$B,listbox!$D$3,database!$A:$A,listbox!$B$3) -> 0 | E74: =D74/$D$82 -> 0% | F74: =SUMIFS(database!$M:$M,database!$F:$F,calc!$C$72,database!$J:$J,calc!C74,database!$B:$B,listbox!$D$3,database!$A:$A,listbox!$B$3) -> 0 | G74: =F74/$F$82 -> 0% | J74: =IFERROR(test4[[#This Row],[ساعت اضافه کاری]]/D28,"") ->  | K74: =IFERROR(J74/$J$82,"") ->  | L74: =IFERROR(test4[[#This Row],[جمع پرداختی]]/D28,"") ->  | M74: =IFERROR(L74/$L$82,"") -> 
C75: تدارکات(دفتر مرکزی) | D75: =SUMIFS(database!$L:$L,database!$F:$F,calc!$C$72,database!$J:$J,calc!C75,database!$B:$B,listbox!$D$3,database!$A:$A,listbox!$B$3) -> 25 | E75: =D75/$D$82 -> 34% | F75: =SUMIFS(database!$M:$M,database!$F:$F,calc!$C$72,database!$J:$J,calc!C75,database!$B:$B,listbox!$D$3,database!$A:$A,listbox!$B$3) -> 10,652,340 | G75: =F75/$F$82 -> 28% | J75: =IFERROR(test4[[#This Row],[ساعت اضافه کاری]]/D29,"") -> 25 | K75: =IFERROR(J75/$J$82,"") -> 34% | L75: =IFERROR(test4[[#This Row],[جمع پرداختی]]/D29,"") -> 10,652,340 | M75: =IFERROR(L75/$L$82,"") -> 28%
C76: بازرگانی(دفتر مرکزی) | D76: =SUMIFS(database!$L:$L,database!$F:$F,calc!$C$72,database!$J:$J,calc!C76,database!$B:$B,listbox!$D$3,database!$A:$A,listbox!$B$3) -> 0 | E76: 0% | F76: =SUMIFS(database!$M:$M,database!$F:$F,calc!$C$72,database!$J:$J,calc!C76,database!$B:$B,listbox!$D$3,database!$A:$A,listbox!$B$3) -> 0 | G76: 0% | J76: =IFERROR(test4[[#This Row],[ساعت اضافه کاری]]/D30,"") ->  | L76: =IFERROR(test4[[#This Row],[جمع پرداختی]]/D30,"") -> 
C77: فنی(دفتر مرکزی) | D77: =SUMIFS(database!$L:$L,database!$F:$F,calc!$C$72,database!$J:$J,calc!C77,database!$B:$B,listbox!$D$3,database!$A:$A,listbox!$B$3) -> 0 | E77: 0% | F77: =SUMIFS(database!$M:$M,database!$F:$F,calc!$C$72,database!$J:$J,calc!C77,database!$B:$B,listbox!$D$3,database!$A:$A,listbox!$B$3) -> 0 | G77: 0% | J77: =IFERROR(test4[[#This Row],[ساعت اضافه کاری]]/D31,"") ->  | L77: =IFERROR(test4[[#This Row],[جمع پرداختی]]/D31,"") -> 
C78: مدیریت عامل(دفتر مرکزی) | D78: =SUMIFS(database!$L:$L,database!$F:$F,calc!$C$72,database!$J:$J,calc!C78,database!$B:$B,listbox!$D$3,database!$A:$A,listbox!$B$3) -> 0 | E78: 0% | F78: =SUMIFS(database!$M:$M,database!$F:$F,calc!$C$72,database!$J:$J,calc!C78,database!$B:$B,listbox!$D$3,database!$A:$A,listbox!$B$3) -> 0 | G78: 0% | J78: =IFERROR(test4[[#This Row],[ساعت اضافه کاری]]/D32,"") -> 0 | K78: 0% | L78: =IFERROR(test4[[#This Row],[جمع پرداختی]]/D32,"") -> 0 | M78: 0%
C79: هیئت مدیره(دفترمرکزی) | D79: =SUMIFS(database!$L:$L,database!$F:$F,calc!$C$72,database!$J:$J,calc!C79,database!$B:$B,listbox!$D$3,database!$A:$A,listbox!$B$3) -> 0 | E79: 0% | F79: =SUMIFS(database!$M:$M,database!$F:$F,calc!$C$72,database!$J:$J,calc!C79,database!$B:$B,listbox!$D$3,database!$A:$A,listbox!$B$3) -> 0 | G79: 0% | J79: =IFERROR(test4[[#This Row],[ساعت اضافه کاری]]/D33,"") ->  | L79: =IFERROR(test4[[#This Row],[جمع پرداختی]]/D33,"") -> 
C80: مالی (دفتر مرکزی) | D80: =SUMIFS(database!$L:$L,database!$F:$F,calc!$C$72,database!$J:$J,calc!C80,database!$B:$B,listbox!$D$3,database!$A:$A,listbox!$B$3) -> 34.38 | E80: 47% | F80: =SUMIFS(database!$M:$M,database!$F:$F,calc!$C$72,database!$J:$J,calc!C80,database!$B:$B,listbox!$D$3,database!$A:$A,listbox!$B$3) -> 21,044,974 | G80: 55% | J80: =IFERROR(test4[[#This Row],[ساعت اضافه کاری]]/D34,"") -> 34 | K80: 47% | L80: =IFERROR(test4[[#This Row],[جمع پرداختی]]/D34,"") -> 21,044,974 | M80: 55%
C81: اداری (دفتر مرکزی) | D81: =SUMIFS(database!$L:$L,database!$F:$F,calc!$C$72,database!$J:$J,calc!C81,database!$B:$B,listbox!$D$3,database!$A:$A,listbox!$B$3) -> 13.9 | E81: 19% | F81: =SUMIFS(database!$M:$M,database!$F:$F,calc!$C$72,database!$J:$J,calc!C81,database!$B:$B,listbox!$D$3,database!$A:$A,listbox!$B$3) -> 6,280,273 | G81: 17% | J81: =IFERROR(test4[[#This Row],[ساعت اضافه کاری]]/D35,"") -> 14 | K81: 19% | L81: =IFERROR(test4[[#This Row],[جمع پرداختی]]/D35,"") -> 6,280,273 | M81: 17%
C82: جمع | D82: =SUM(D74:D81) -> 73.28 | E82: =SUM(E74:E81) -> 100% | F82: =SUM(F74:F81) -> 37,977,587 | G82: =SUM(G74:G81) -> 100% | J82: =SUM(J74:J81) -> 73.28 | K82: =SUM(K74:K81) -> 100% | L82: =SUM(L74:L81) -> 37,977,587 | M82: =SUM(M74:M81) -> 100%
C85: کل
C86: مرکز هزینه | D86: ساعت اضافه کاری | E86: درصد | F86: جمع پرداختی | G86: درصد(جمع پرداختی)
C87: بندرعباس | D87: =SUMIFS(database!$L:$L,database!$F:$F,calc!C87,database!$B:$B,listbox!$D$3,database!$A:$A,listbox!$B$3) -> 596.25 | E87: =D87/$D$89 -> 89% | F87: =SUMIFS(database!$M:$M,database!$F:$F,calc!C87,database!$B:$B,listbox!$D$3,database!$A:$A,listbox!$B$3) -> 251,966,127 | G87: =F87/$F$89 -> 87%
C88: تهران | D88: =SUMIFS(database!$L:$L,database!$F:$F,calc!C88,database!$B:$B,listbox!$D$3,database!$A:$A,listbox!$B$3) -> 73.28 | E88: =D88/$D$89 -> 11% | F88: =SUMIFS(database!$M:$M,database!$F:$F,calc!C88,database!$B:$B,listbox!$D$3,database!$A:$A,listbox!$B$3) -> 37,977,587 | G88: =F88/$F$89 -> 13%
C89: جمع | D89: =SUM(D87:D88) -> 669.53 | E89: =SUM(E87:E88) -> 100% | F89: =SUM(F87:F88) -> 289,943,714 | G89: =SUM(G87:G88) -> 100%
C93: جمعه کاری:
C95: بندرعباس
C96: مرکز هزینه | D96: ساعت جمعه کاری | E96: درصد | F96: جمع پرداختی | G96: درصد(جمع پرداختی) | J96: سرانه ساعت | K96: درصد سرانه | L96: سرانه پرداختی | M96: درصد سرانه پرداختی
C97: حراست (کارخانه) | D97: =SUMIFS(database!$N:$N,database!$F:$F,calc!$C$95,database!$J:$J,C97,database!$B:$B,listbox!$D$3,database!$A:$A,listbox!$B$3) -> 236.71 | E97: =D97/$D$115 -> 67% | F97: =SUMIFS(database!$O:$O,database!$F:$F,$C$95,database!$J:$J,calc!C97,database!$B:$B,listbox!$D$3,database!$A:$A,listbox!$B$3) -> 46,228,609 | G97: =F97/$F$115 -> 88% | J97: =IFERROR(D97/D5,"") -> 79 | K97: =IFERROR(J97/$J$115,"") -> 48% | L97: =IFERROR(F97/D5,"") -> 15,409,536 | M97: =IFERROR(L97/$L$115,"") -> 73%
C98: آشپزخانه (کارخانه) | D98: =SUMIFS(database!$N:$N,database!$F:$F,calc!$C$95,database!$J:$J,C98,database!$B:$B,listbox!$D$3,database!$A:$A,listbox!$B$3) -> 16.73 | E98: 5% | F98: =SUMIFS(database!$O:$O,database!$F:$F,$C$95,database!$J:$J,calc!C98,database!$B:$B,listbox!$D$3,database!$A:$A,listbox!$B$3) -> 1,605,234 | G98: 3% | J98: 17 | K98: =IFERROR(J98/$J$115,"") -> 10% | L98: 1,605,234 | M98: =IFERROR(L98/$L$115,"") -> 8%
C99: تدارکات (کارخانه) | D99: =SUMIFS(database!$N:$N,database!$F:$F,calc!$C$95,database!$J:$J,C99,database!$B:$B,listbox!$D$3,database!$A:$A,listbox!$B$3) -> 0 | E99: 0% | F99: =SUMIFS(database!$O:$O,database!$F:$F,$C$95,database!$J:$J,calc!C99,database!$B:$B,listbox!$D$3,database!$A:$A,listbox!$B$3) -> 0 | G99: 0%
C100: انبار (کارخانه) | D100: =SUMIFS(database!$N:$N,database!$F:$F,calc!$C$95,database!$J:$J,C100,database!$B:$B,listbox!$D$3,database!$A:$A,listbox!$B$3) -> 0 | E100: 0% | F100: =SUMIFS(database!$O:$O,database!$F:$F,$C$95,database!$J:$J,calc!C100,database!$B:$B,listbox!$D$3,database!$A:$A,listbox!$B$3) -> 0 | G100: 0% | J100: 0 | K100: 0% | L100: 0 | M100: 0%
C101: تاسیسات (کارخانه) | D101: =SUMIFS(database!$N:$N,database!$F:$F,calc!$C$95,database!$J:$J,C101,database!$B:$B,listbox!$D$3,database!$A:$A,listbox!$B$3) -> 0 | E101: 0% | F101: =SUMIFS(database!$O:$O,database!$F:$F,$C$95,database!$J:$J,calc!C101,database!$B:$B,listbox!$D$3,database!$A:$A,listbox!$B$3) -> 0 | G101: 0%
C102: فنی تولید (کارخانه) | D102: =SUMIFS(database!$N:$N,database!$F:$F,calc!$C$95,database!$J:$J,C102,database!$B:$B,listbox!$D$3,database!$A:$A,listbox!$B$3) -> 27.4 | E102: 8% | F102: =SUMIFS(database!$O:$O,database!$F:$F,$C$95,database!$J:$J,calc!C102,database!$B:$B,listbox!$D$3,database!$A:$A,listbox!$B$3) -> 0 | G102: 0% | J102: 27 | K102: 17% | L102: 0 | M102: 0%
C103: تعمیر و نگهداری(کارخانه) | D103: =SUMIFS(database!$N:$N,database!$F:$F,calc!$C$95,database!$J:$J,C103,database!$B:$B,listbox!$D$3,database!$A:$A,listbox!$B$3) -> 0 | E103: 0% | F103: =SUMIFS(database!$O:$O,database!$F:$F,$C$95,database!$J:$J,calc!C103,database!$B:$B,listbox!$D$3,database!$A:$A,listbox!$B$3) -> 0 | G103: 0% | J103: 0 | K103: 0% | L103: 0 | M103: 0%
C104: QC و کنترل کیفیت (کارخانه) | D104: =SUMIFS(database!$N:$N,database!$F:$F,calc!$C$95,database!$J:$J,C104,database!$B:$B,listbox!$D$3,database!$A:$A,listbox!$B$3) -> 0 | E104: 0% | F104: =SUMIFS(database!$O:$O,database!$F:$F,$C$95,database!$J:$J,calc!C104,database!$B:$B,listbox!$D$3,database!$A:$A,listbox!$B$3) -> 0 | G104: 0%
C105: حمل مواد اولیه (کارخانه) | D105: =SUMIFS(database!$N:$N,database!$F:$F,calc!$C$95,database!$J:$J,C105,database!$B:$B,listbox!$D$3,database!$A:$A,listbox!$B$3) -> 0 | E105: 0% | F105: =SUMIFS(database!$O:$O,database!$F:$F,$C$95,database!$J:$J,calc!C105,database!$B:$B,listbox!$D$3,database!$A:$A,listbox!$B$3) -> 0 | G105: 0% | J105: 0 | K105: 0% | L105: 0 | M105: 0%
C106: حمل محصولات و سایر (کارخانه) | D106: =SUMIFS(database!$N:$N,database!$F:$F,calc!$C$95,database!$J:$J,C106,database!$B:$B,listbox!$D$3,database!$A:$A,listbox!$B$3) -> 0 | E106: 0% | F106: =SUMIFS(database!$O:$O,database!$F:$F,$C$95,database!$J:$J,calc!C106,database!$B:$B,listbox!$D$3,database!$A:$A,listbox!$B$3) -> 0 | G106: 0%
C107: قالب سازی(کارخانه) | D107: =SUMIFS(database!$N:$N,database!$F:$F,calc!$C$95,database!$J:$J,C107,database!$B:$B,listbox!$D$3,database!$A:$A,listbox!$B$3) -> 0 | E107: 0% | F107: =SUMIFS(database!$O:$O,database!$F:$F,$C$95,database!$J:$J,calc!C107,database!$B:$B,listbox!$D$3,database!$A:$A,listbox!$B$3) -> 0 | G107: 0%
C108: بتن سازی(کارخانه) | D108: =SUMIFS(database!$N:$N,database!$F:$F,calc!$C$95,database!$J:$J,C108,database!$B:$B,listbox!$D$3,database!$A:$A,listbox!$B$3) -> 50.09 | E108: 14% | F108: =SUMIFS(database!$O:$O,database!$F:$F,$C$95,database!$J:$J,calc!C108,database!$B:$B,listbox!$D$3,database!$A:$A,listbox!$B$3) -> 587,576 | G108: 1% | J108: 25 | K108: 15% | L108: 293,788 | M108: 1%
C109: بتن ریزی(کارخانه) | D109: =SUMIFS(database!$N:$N,database!$F:$F,calc!$C$95,database!$J:$J,C109,database!$B:$B,listbox!$D$3,database!$A:$A,listbox!$B$3) -> 8.16 | E109: 2% | F109: =SUMIFS(database!$O:$O,database!$F:$F,$C$95,database!$J:$J,calc!C109,database!$B:$B,listbox!$D$3,database!$A:$A,listbox!$B$3) -> 1,051,573 | G109: 2% | J109: 4 | K109: 2% | L109: 525,787 | M109: 2%
C110: آرماتور، میلگرد (کارخانه) | D110: =SUMIFS(database!$N:$N,database!$F:$F,calc!$C$95,database!$J:$J,C110,database!$B:$B,listbox!$D$3,database!$A:$A,listbox!$B$3) -> 0 | E110: 0% | F110: =SUMIFS(database!$O:$O,database!$F:$F,$C$95,database!$J:$J,calc!C110,database!$B:$B,listbox!$D$3,database!$A:$A,listbox!$B$3) -> 0 | G110: 0% | J110: 0 | K110: 0% | L110: 0 | M110: 0%
C111: کیورینگ(کارخانه) | D111: =SUMIFS(database!$N:$N,database!$F:$F,calc!$C$95,database!$J:$J,C111,database!$B:$B,listbox!$D$3,database!$A:$A,listbox!$B$3) -> 0 | E111: 0% | F111: =SUMIFS(database!$O:$O,database!$F:$F,$C$95,database!$J:$J,calc!C111,database!$B:$B,listbox!$D$3,database!$A:$A,listbox!$B$3) -> 0 | G111: 0%
C112: مدیریت(کارخانه) | D112: =SUMIFS(database!$N:$N,database!$F:$F,calc!$C$95,database!$J:$J,C112,database!$B:$B,listbox!$D$3,database!$A:$A,listbox!$B$3) -> 0 | E112: 0% | F112: =SUMIFS(database!$O:$O,database!$F:$F,$C$95,database!$J:$J,calc!C112,database!$B:$B,listbox!$D$3,database!$A:$A,listbox!$B$3) -> 0 | G112: 0%
C113: اداری(کارخانه) | D113: =SUMIFS(database!$N:$N,database!$F:$F,calc!$C$95,database!$J:$J,C113,database!$B:$B,listbox!$D$3,database!$A:$A,listbox!$B$3) -> 13.75 | E113: 4% | F113: =SUMIFS(database!$O:$O,database!$F:$F,$C$95,database!$J:$J,calc!C113,database!$B:$B,listbox!$D$3,database!$A:$A,listbox!$B$3) -> 3,313,636 | G113: 6% | J113: 14 | K113: 8% | L113: 3,313,636 | M113: 16%
C114: توزیع و فروش | D114: =SUMIFS(database!$N:$N,database!$F:$F,calc!$C$95,database!$J:$J,C114,database!$B:$B,listbox!$D$3,database!$A:$A,listbox!$B$3) -> 0 | E114: 0% | F114: =SUMIFS(database!$O:$O,database!$F:$F,$C$95,database!$J:$J,calc!C114,database!$B:$B,listbox!$D$3,database!$A:$A,listbox!$B$3) -> 0 | G114: 0%
C115: جمع | D115: =SUM(D97:D114) -> 352.84 | E115: =SUM(E97:E114) -> 100% | F115: =SUM(F97:F114) -> 52,786,628 | G115: =SUM(G97:G114) -> 100% | J115: =SUM(J97:J114) -> 165.91 | K115: =SUM(K97:K114) -> 100% | L115: =SUM(L97:L114) -> 21,147,981 | M115: =SUM(M97:M114) -> 100%
C118: تهران
C119: مرکز هزینه | D119: ساعت جمعه کاری | E119: درصد | F119: جمع پرداختی | G119: درصد(جمع پرداختی) | J119: سرانه ساعت | K119: درصد سرانه | L119: سرانه پرداختی | M119: درصد سرانه پرداختی
C120: آشپزخانه(دفتر مرکزی) | D120: =SUMIFS(database!$N:$N,database!$F:$F,calc!$C$118,database!$J:$J,C120,database!$B:$B,listbox!$D$3,database!$A:$A,listbox!$B$3) -> 0 | E120: =IFERROR(D120/$D$128,"") ->  | F120: =SUMIFS(database!$O:$O,database!$F:$F,$C$118,database!$J:$J,calc!C120,database!$B:$B,listbox!$D$3,database!$A:$A,listbox!$B$3) -> 0 | G120: =IFERROR(F120/$F$128,"") ->  | J120: =IFERROR(D120/D28,"") ->  | K120: =IFERROR(J120/$J$128,"") ->  | L120: =IFERROR(F120/D28,"") ->  | M120: =IFERROR(L120/$L$128,"") -> 
C121: تدارکات(دفتر مرکزی) | D121: =SUMIFS(database!$N:$N,database!$F:$F,calc!$C$118,database!$J:$J,C121,database!$B:$B,listbox!$D$3,database!$A:$A,listbox!$B$3) -> 0 | E121: =IFERROR(D121/$D$128,"") ->  | F121: =SUMIFS(database!$O:$O,database!$F:$F,$C$118,database!$J:$J,calc!C121,database!$B:$B,listbox!$D$3,database!$A:$A,listbox!$B$3) -> 0 | G121: =IFERROR(F121/$F$128,"") ->  | J121: =IFERROR(D121/D29,"") -> 0 | K121: =IFERROR(J121/$J$128,"") ->  | L121: =IFERROR(F121/D29,"") -> 0 | M121: =IFERROR(L121/$L$128,"") -> 
C122: بازرگانی(دفتر مرکزی) | D122: =SUMIFS(database!$N:$N,database!$F:$F,calc!$C$118,database!$J:$J,C122,database!$B:$B,listbox!$D$3,database!$A:$A,listbox!$B$3) -> 0 | F122: =SUMIFS(database!$O:$O,database!$F:$F,$C$118,database!$J:$J,calc!C122,database!$B:$B,listbox!$D$3,database!$A:$A,listbox!$B$3) -> 0
C123: فنی(دفتر مرکزی) | D123: =SUMIFS(database!$N:$N,database!$F:$F,calc!$C$118,database!$J:$J,C123,database!$B:$B,listbox!$D$3,database!$A:$A,listbox!$B$3) -> 0 | F123: =SUMIFS(database!$O:$O,database!$F:$F,$C$118,database!$J:$J,calc!C123,database!$B:$B,listbox!$D$3,database!$A:$A,listbox!$B$3) -> 0
C124: مدیریت عامل(دفتر مرکزی) | D124: =SUMIFS(database!$N:$N,database!$F:$F,calc!$C$118,database!$J:$J,C124,database!$B:$B,listbox!$D$3,database!$A:$A,listbox!$B$3) -> 0 | F124: =SUMIFS(database!$O:$O,database!$F:$F,$C$118,database!$J:$J,calc!C124,database!$B:$B,listbox!$D$3,database!$A:$A,listbox!$B$3) -> 0 | J124: 0 | L124: 0
C125: هیئت مدیره(دفترمرکزی) | D125: =SUMIFS(database!$N:$N,database!$F:$F,calc!$C$118,database!$J:$J,C125,database!$B:$B,listbox!$D$3,database!$A:$A,listbox!$B$3) -> 0 | F125: =SUMIFS(database!$O:$O,database!$F:$F,$C$118,database!$J:$J,calc!C125,database!$B:$B,listbox!$D$3,database!$A:$A,listbox!$B$3) -> 0
C126: مالی (دفتر مرکزی) | D126: =SUMIFS(database!$N:$N,database!$F:$F,calc!$C$118,database!$J:$J,C126,database!$B:$B,listbox!$D$3,database!$A:$A,listbox!$B$3) -> 0 | F126: =SUMIFS(database!$O:$O,database!$F:$F,$C$118,database!$J:$J,calc!C126,database!$B:$B,listbox!$D$3,database!$A:$A,listbox!$B$3) -> 0 | J126: 0 | L126: 0
C127: اداری (دفتر مرکزی) | D127: =SUMIFS(database!$N:$N,database!$F:$F,calc!$C$118,database!$J:$J,C127,database!$B:$B,listbox!$D$3,database!$A:$A,listbox!$B$3) -> 0 | F127: =SUMIFS(database!$O:$O,database!$F:$F,$C$118,database!$J:$J,calc!C127,database!$B:$B,listbox!$D$3,database!$A:$A,listbox!$B$3) -> 0 | J127: 0 | L127: 0
C128: جمع | D128: =SUM(D120:D127) -> 0 | E128: =SUM(E120:E127) -> 0% | F128: =SUM(F120:F127) -> 0 | G128: =SUM(G120:G127) -> 0% | J128: =SUM(J120:J127) -> 0 | K128: =SUM(K120:K127) -> 0% | L128: =SUM(L120:L127) -> 0 | M128: =SUM(M120:M127) -> 0%
C132: شب کاری:
C134: بندرعباس
C135: مرکز هزینه | D135: ساعت شب کاری | E135: درصد | F135: جمع پرداختی | G135: درصد(جمع پرداختی) | J135: سرانه ساعت | K135: درصد سرانه | L135: سرانه پرداختی | M135: درصد سرانه پرداختی
C136: حراست (کارخانه) | D136: =SUMIFS(database!$P:$P,database!$F:$F,calc!$C$134,database!$J:$J,C136,database!$B:$B,listbox!$D$3,database!$A:$A,listbox!$B$3) -> 368 | E136: =D136/$D$154 -> 100% | F136: =SUMIFS(database!$Q:$Q,database!$F:$F,$C$134,database!$J:$J,calc!C136,database!$B:$B,listbox!$D$3,database!$A:$A,listbox!$B$3) -> 24,410,936 | G136: =F136/$F$154 -> 100% | J136: =IFERROR(D136/D5,"") -> 123 | K136: =IFERROR(J136/$J$154,"") -> 100% | L136: =IFERROR(F136/D5,"") -> 8,136,979 | M136: =IFERROR(L136/$L$154,"") -> 100%
C137: آشپزخانه (کارخانه) | D137: =SUMIFS(database!$P:$P,database!$F:$F,calc!$C$134,database!$J:$J,C137,database!$B:$B,listbox!$D$3,database!$A:$A,listbox!$B$3) -> 0 | E137: =D137/$D$154 -> 0% | F137: =SUMIFS(database!$Q:$Q,database!$F:$F,$C$134,database!$J:$J,calc!C137,database!$B:$B,listbox!$D$3,database!$A:$A,listbox!$B$3) -> 0 | G137: =F137/$F$154 -> 0% | J137: =IFERROR(D137/D6,"") -> 0 | K137: =IFERROR(J137/$J$154,"") -> 0% | L137: =IFERROR(F137/D6,"") -> 0 | M137: =IFERROR(L137/$L$154,"") -> 0%
C138: تدارکات (کارخانه) | D138: =SUMIFS(database!$P:$P,database!$F:$F,calc!$C$134,database!$J:$J,C138,database!$B:$B,listbox!$D$3,database!$A:$A,listbox!$B$3) -> 0 | E138: 0% | F138: =SUMIFS(database!$Q:$Q,database!$F:$F,$C$134,database!$J:$J,calc!C138,database!$B:$B,listbox!$D$3,database!$A:$A,listbox!$B$3) -> 0 | G138: 0%
C139: انبار (کارخانه) | D139: =SUMIFS(database!$P:$P,database!$F:$F,calc!$C$134,database!$J:$J,C139,database!$B:$B,listbox!$D$3,database!$A:$A,listbox!$B$3) -> 0 | E139: 0% | F139: =SUMIFS(database!$Q:$Q,database!$F:$F,$C$134,database!$J:$J,calc!C139,database!$B:$B,listbox!$D$3,database!$A:$A,listbox!$B$3) -> 0 | G139: 0% | J139: 0 | K139: 0% | L139: 0 | M139: 0%
C140: تاسیسات (کارخانه) | D140: =SUMIFS(database!$P:$P,database!$F:$F,calc!$C$134,database!$J:$J,C140,database!$B:$B,listbox!$D$3,database!$A:$A,listbox!$B$3) -> 0 | E140: 0% | F140: =SUMIFS(database!$Q:$Q,database!$F:$F,$C$134,database!$J:$J,calc!C140,database!$B:$B,listbox!$D$3,database!$A:$A,listbox!$B$3) -> 0 | G140: 0%
C141: فنی تولید (کارخانه) | D141: =SUMIFS(database!$P:$P,database!$F:$F,calc!$C$134,database!$J:$J,C141,database!$B:$B,listbox!$D$3,database!$A:$A,listbox!$B$3) -> 0 | E141: 0% | F141: =SUMIFS(database!$Q:$Q,database!$F:$F,$C$134,database!$J:$J,calc!C141,database!$B:$B,listbox!$D$3,database!$A:$A,listbox!$B$3) -> 0 | G141: 0% | J141: 0 | K141: 0% | L141: 0 | M141: 0%
C142: تعمیر و نگهداری(کارخانه) | D142: =SUMIFS(database!$P:$P,database!$F:$F,calc!$C$134,database!$J:$J,C142,database!$B:$B,listbox!$D$3,database!$A:$A,listbox!$B$3) -> 0 | E142: 0% | F142: =SUMIFS(database!$Q:$Q,database!$F:$F,$C$134,database!$J:$J,calc!C142,database!$B:$B,listbox!$D$3,database!$A:$A,listbox!$B$3) -> 0 | G142: 0% | J142: 0 | K142: 0% | L142: 0 | M142: 0%
C143: QC و کنترل کیفیت (کارخانه) | D143: =SUMIFS(database!$P:$P,database!$F:$F,calc!$C$134,database!$J:$J,C143,database!$B:$B,listbox!$D$3,database!$A:$A,listbox!$B$3) -> 0 | E143: 0% | F143: =SUMIFS(database!$Q:$Q,database!$F:$F,$C$134,database!$J:$J,calc!C143,database!$B:$B,listbox!$D$3,database!$A:$A,listbox!$B$3) -> 0 | G143: 0%
C144: حمل مواد اولیه (کارخانه) | D144: =SUMIFS(database!$P:$P,database!$F:$F,calc!$C$134,database!$J:$J,C144,database!$B:$B,listbox!$D$3,database!$A:$A,listbox!$B$3) -> 0 | E144: 0% | F144: =SUMIFS(database!$Q:$Q,database!$F:$F,$C$134,database!$J:$J,calc!C144,database!$B:$B,listbox!$D$3,database!$A:$A,listbox!$B$3) -> 0 | G144: 0% | J144: 0 | K144: 0% | L144: 0 | M144: 0%
C145: حمل محصولات و سایر (کارخانه) | D145: =SUMIFS(database!$P:$P,database!$F:$F,calc!$C$134,database!$J:$J,C145,database!$B:$B,listbox!$D$3,database!$A:$A,listbox!$B$3) -> 0 | E145: 0% | F145: =SUMIFS(database!$Q:$Q,database!$F:$F,$C$134,database!$J:$J,calc!C145,database!$B:$B,listbox!$D$3,database!$A:$A,listbox!$B$3) -> 0 | G145: 0%
C146: قالب سازی(کارخانه) | D146: =SUMIFS(database!$P:$P,database!$F:$F,calc!$C$134,database!$J:$J,C146,database!$B:$B,listbox!$D$3,database!$A:$A,listbox!$B$3) -> 0 | E146: 0% | F146: =SUMIFS(database!$Q:$Q,database!$F:$F,$C$134,database!$J:$J,calc!C146,database!$B:$B,listbox!$D$3,database!$A:$A,listbox!$B$3) -> 0 | G146: 0%
C147: بتن سازی(کارخانه) | D147: =SUMIFS(database!$P:$P,database!$F:$F,calc!$C$134,database!$J:$J,C147,database!$B:$B,listbox!$D$3,database!$A:$A,listbox!$B$3) -> 0 | E147: 0.00% | F147: =SUMIFS(database!$Q:$Q,database!$F:$F,$C$134,database!$J:$J,calc!C147,database!$B:$B,listbox!$D$3,database!$A:$A,listbox!$B$3) -> 0 | G147: 0% | J147: 0.00 | K147: 0.00% | L147: 0 | M147: 0.00%
C148: بتن ریزی(کارخانه) | D148: =SUMIFS(database!$P:$P,database!$F:$F,calc!$C$134,database!$J:$J,C148,database!$B:$B,listbox!$D$3,database!$A:$A,listbox!$B$3) -> 0 | E148: 0% | F148: =SUMIFS(database!$Q:$Q,database!$F:$F,$C$134,database!$J:$J,calc!C148,database!$B:$B,listbox!$D$3,database!$A:$A,listbox!$B$3) -> 0 | G148: 0% | J148: 0 | K148: 0% | L148: 0 | M148: 0%
C149: آرماتور، میلگرد (کارخانه) | D149: =SUMIFS(database!$P:$P,database!$F:$F,calc!$C$134,database!$J:$J,C149,database!$B:$B,listbox!$D$3,database!$A:$A,listbox!$B$3) -> 0 | E149: 0% | F149: =SUMIFS(database!$Q:$Q,database!$F:$F,$C$134,database!$J:$J,calc!C149,database!$B:$B,listbox!$D$3,database!$A:$A,listbox!$B$3) -> 0 | G149: 0% | J149: 0 | K149: 0% | L149: 0 | M149: 0%
C150: کیورینگ(کارخانه) | D150: =SUMIFS(database!$P:$P,database!$F:$F,calc!$C$134,database!$J:$J,C150,database!$B:$B,listbox!$D$3,database!$A:$A,listbox!$B$3) -> 0 | E150: 0% | F150: =SUMIFS(database!$Q:$Q,database!$F:$F,$C$134,database!$J:$J,calc!C150,database!$B:$B,listbox!$D$3,database!$A:$A,listbox!$B$3) -> 0 | G150: 0%
C151: مدیریت(کارخانه) | D151: =SUMIFS(database!$P:$P,database!$F:$F,calc!$C$134,database!$J:$J,C151,database!$B:$B,listbox!$D$3,database!$A:$A,listbox!$B$3) -> 0 | E151: 0% | F151: =SUMIFS(database!$Q:$Q,database!$F:$F,$C$134,database!$J:$J,calc!C151,database!$B:$B,listbox!$D$3,database!$A:$A,listbox!$B$3) -> 0 | G151: 0%
C152: اداری(کارخانه) | D152: =SUMIFS(database!$P:$P,database!$F:$F,calc!$C$134,database!$J:$J,C152,database!$B:$B,listbox!$D$3,database!$A:$A,listbox!$B$3) -> 0 | E152: 0% | F152: =SUMIFS(database!$Q:$Q,database!$F:$F,$C$134,database!$J:$J,calc!C152,database!$B:$B,listbox!$D$3,database!$A:$A,listbox!$B$3) -> 0 | G152: 0% | J152: 0 | K152: 0% | L152: 0 | M152: 0%
C153: توزیع و فروش | D153: =SUMIFS(database!$P:$P,database!$F:$F,calc!$C$134,database!$J:$J,C153,database!$B:$B,listbox!$D$3,database!$A:$A,listbox!$B$3) -> 0 | E153: 0% | F153: =SUMIFS(database!$Q:$Q,database!$F:$F,$C$134,database!$J:$J,calc!C153,database!$B:$B,listbox!$D$3,database!$A:$A,listbox!$B$3) -> 0 | G153: 0%
C154: جمع | D154: =SUM(D136:D153) -> 368 | E154: =SUM(E136:E153) -> 100% | F154: =SUM(F136:F153) -> 24,410,936 | G154: =SUM(G136:G153) -> 100% | J154: =SUM(J136:J153) -> 122.67 | K154: =SUM(K136:K153) -> 100% | L154: =SUM(L136:L153) -> 8,136,979 | M154: =SUM(M136:M153) -> 100%
C157: تهران
C158: مرکز هزینه | D158: ساعت شب کاری | E158: درصد | F158: جمع پرداختی | G158: درصد(جمع پرداختی) | J158: سرانه ساعت | K158: درصد سرانه | L158: سرانه پرداختی | M158: درصد سرانه پرداختی
C159: آشپزخانه(دفتر مرکزی) | D159: =SUMIFS(database!$P:$P,database!$F:$F,calc!$C$157,database!$J:$J,C159,database!$B:$B,listbox!$D$3,database!$A:$A,listbox!$B$3) -> 0 | E159: =IFERROR(D159/$D$167,"") ->  | F159: =SUMIFS(database!$Q:$Q,database!$F:$F,$C$157,database!$J:$J,calc!C159,database!$B:$B,listbox!$D$3,database!$A:$A,listbox!$B$3) -> 0 | G159: =IFERROR(F159/$F$167,"") ->  | J159: =IFERROR(D159/D5,"") -> 0 | K159: =IFERROR(J159/$J$167,"") ->  | L159: =IFERROR(F159/D28,"") ->  | M159: =IFERROR(L159/$L$167,"") -> 
C160: تدارکات(دفتر مرکزی) | D160: =SUMIFS(database!$P:$P,database!$F:$F,calc!$C$157,database!$J:$J,C160,database!$B:$B,listbox!$D$3,database!$A:$A,listbox!$B$3) -> 0 | E160: =IFERROR(D160/$D$167,"") ->  | F160: =SUMIFS(database!$Q:$Q,database!$F:$F,$C$157,database!$J:$J,calc!C160,database!$B:$B,listbox!$D$3,database!$A:$A,listbox!$B$3) -> 0 | G160: =IFERROR(F160/$F$167,"") ->  | J160: =IFERROR(D160/D6,"") -> 0 | K160: =IFERROR(J160/$J$167,"") ->  | L160: =IFERROR(F160/D29,"") -> 0 | M160: =IFERROR(L160/$L$167,"") -> 
C161: بازرگانی(دفتر مرکزی) | D161: =SUMIFS(database!$P:$P,database!$F:$F,calc!$C$157,database!$J:$J,C161,database!$B:$B,listbox!$D$3,database!$A:$A,listbox!$B$3) -> 0 | F161: =SUMIFS(database!$Q:$Q,database!$F:$F,$C$157,database!$J:$J,calc!C161,database!$B:$B,listbox!$D$3,database!$A:$A,listbox!$B$3) -> 0
C162: فنی(دفتر مرکزی) | D162: =SUMIFS(database!$P:$P,database!$F:$F,calc!$C$157,database!$J:$J,C162,database!$B:$B,listbox!$D$3,database!$A:$A,listbox!$B$3) -> 0 | F162: =SUMIFS(database!$Q:$Q,database!$F:$F,$C$157,database!$J:$J,calc!C162,database!$B:$B,listbox!$D$3,database!$A:$A,listbox!$B$3) -> 0 | J162: 0
C163: مدیریت عامل(دفتر مرکزی) | D163: =SUMIFS(database!$P:$P,database!$F:$F,calc!$C$157,database!$J:$J,C163,database!$B:$B,listbox!$D$3,database!$A:$A,listbox!$B$3) -> 0 | F163: =SUMIFS(database!$Q:$Q,database!$F:$F,$C$157,database!$J:$J,calc!C163,database!$B:$B,listbox!$D$3,database!$A:$A,listbox!$B$3) -> 0 | L163: 0
C164: هیئت مدیره(دفترمرکزی) | D164: =SUMIFS(database!$P:$P,database!$F:$F,calc!$C$157,database!$J:$J,C164,database!$B:$B,listbox!$D$3,database!$A:$A,listbox!$B$3) -> 0 | F164: =SUMIFS(database!$Q:$Q,database!$F:$F,$C$157,database!$J:$J,calc!C164,database!$B:$B,listbox!$D$3,database!$A:$A,listbox!$B$3) -> 0 | J164: 0
C165: مالی (دفتر مرکزی) | D165: =SUMIFS(database!$P:$P,database!$F:$F,calc!$C$157,database!$J:$J,C165,database!$B:$B,listbox!$D$3,database!$A:$A,listbox!$B$3) -> 0 | F165: =SUMIFS(database!$Q:$Q,database!$F:$F,$C$157,database!$J:$J,calc!C165,database!$B:$B,listbox!$D$3,database!$A:$A,listbox!$B$3) -> 0 | J165: 0 | L165: 0
C166: اداری (دفتر مرکزی) | D166: =SUMIFS(database!$P:$P,database!$F:$F,calc!$C$157,database!$J:$J,C166,database!$B:$B,listbox!$D$3,database!$A:$A,listbox!$B$3) -> 0 | F166: =SUMIFS(database!$Q:$Q,database!$F:$F,$C$157,database!$J:$J,calc!C166,database!$B:$B,listbox!$D$3,database!$A:$A,listbox!$B$3) -> 0 | L166: 0
C167: جمع | D167: =SUM(D159:D166) -> 0 | E167: =SUM(E159:E166) -> 0% | F167: =SUM(F159:F166) -> 0 | G167: =SUM(G159:G166) -> 0% | J167: =SUM(J159:J166) -> 0 | K167: =SUM(K159:K166) -> 0% | L167: =SUM(L159:L166) -> 0 | M167: =SUM(M159:M166) -> 0%
C171: حق ماموریت:
C173: بندرعباس
C174: مرکز هزینه | D174: تعداد روز | E174: Column2 | F174: جمع پرداختی | G174: درصد(جمع پرداختی) | J174: سرانه پرداختی | K174: درصد سرانه پرداختی
C175: حراست (کارخانه) | D175: =SUMIFS(database!$R:$R,database!$F:$F,calc!$C$173,database!$J:$J,calc!C175,database!$B:$B,listbox!$D$3,database!$A:$A,listbox!$B$3) -> 0 | F175: =SUMIFS(database!$S:$S,database!$F:$F,calc!$C$173,database!$J:$J,calc!C175,database!$B:$B,listbox!$D$3,database!$A:$A,listbox!$B$3) -> 0 | G175: =IFERROR(F175/$F$193,"") ->  | J175: =IFERROR(F175/D5,"") -> 0 | K175: =IFERROR(J175/$J$193,"") -> 
C176: آشپزخانه (کارخانه) | D176: =SUMIFS(database!$R:$R,database!$F:$F,calc!$C$173,database!$J:$J,calc!C176,database!$B:$B,listbox!$D$3,database!$A:$A,listbox!$B$3) -> 0 | F176: =SUMIFS(database!$S:$S,database!$F:$F,calc!$C$173,database!$J:$J,calc!C176,database!$B:$B,listbox!$D$3,database!$A:$A,listbox!$B$3) -> 0 | J176: 0 | K176: =IFERROR(J176/$J$193,"") -> 
C177: تدارکات (کارخانه) | D177: =SUMIFS(database!$R:$R,database!$F:$F,calc!$C$173,database!$J:$J,calc!C177,database!$B:$B,listbox!$D$3,database!$A:$A,listbox!$B$3) -> 0 | F177: =SUMIFS(database!$S:$S,database!$F:$F,calc!$C$173,database!$J:$J,calc!C177,database!$B:$B,listbox!$D$3,database!$A:$A,listbox!$B$3) -> 0
C178: انبار (کارخانه) | D178: =SUMIFS(database!$R:$R,database!$F:$F,calc!$C$173,database!$J:$J,calc!C178,database!$B:$B,listbox!$D$3,database!$A:$A,listbox!$B$3) -> 0 | F178: =SUMIFS(database!$S:$S,database!$F:$F,calc!$C$173,database!$J:$J,calc!C178,database!$B:$B,listbox!$D$3,database!$A:$A,listbox!$B$3) -> 0 | J178: 0
C179: تاسیسات (کارخانه) | D179: =SUMIFS(database!$R:$R,database!$F:$F,calc!$C$173,database!$J:$J,calc!C179,database!$B:$B,listbox!$D$3,database!$A:$A,listbox!$B$3) -> 0 | F179: =SUMIFS(database!$S:$S,database!$F:$F,calc!$C$173,database!$J:$J,calc!C179,database!$B:$B,listbox!$D$3,database!$A:$A,listbox!$B$3) -> 0
C180: فنی تولید (کارخانه) | D180: =SUMIFS(database!$R:$R,database!$F:$F,calc!$C$173,database!$J:$J,calc!C180,database!$B:$B,listbox!$D$3,database!$A:$A,listbox!$B$3) -> 0 | F180: =SUMIFS(database!$S:$S,database!$F:$F,calc!$C$173,database!$J:$J,calc!C180,database!$B:$B,listbox!$D$3,database!$A:$A,listbox!$B$3) -> 0 | J180: 0
C181: تعمیر و نگهداری(کارخانه) | D181: =SUMIFS(database!$R:$R,database!$F:$F,calc!$C$173,database!$J:$J,calc!C181,database!$B:$B,listbox!$D$3,database!$A:$A,listbox!$B$3) -> 0 | F181: =SUMIFS(database!$S:$S,database!$F:$F,calc!$C$173,database!$J:$J,calc!C181,database!$B:$B,listbox!$D$3,database!$A:$A,listbox!$B$3) -> 0 | J181: 0
C182: QC و کنترل کیفیت (کارخانه) | D182: =SUMIFS(database!$R:$R,database!$F:$F,calc!$C$173,database!$J:$J,calc!C182,database!$B:$B,listbox!$D$3,database!$A:$A,listbox!$B$3) -> 0 | F182: =SUMIFS(database!$S:$S,database!$F:$F,calc!$C$173,database!$J:$J,calc!C182,database!$B:$B,listbox!$D$3,database!$A:$A,listbox!$B$3) -> 0
C183: حمل مواد اولیه (کارخانه) | D183: =SUMIFS(database!$R:$R,database!$F:$F,calc!$C$173,database!$J:$J,calc!C183,database!$B:$B,listbox!$D$3,database!$A:$A,listbox!$B$3) -> 0 | F183: =SUMIFS(database!$S:$S,database!$F:$F,calc!$C$173,database!$J:$J,calc!C183,database!$B:$B,listbox!$D$3,database!$A:$A,listbox!$B$3) -> 0 | J183: 0
C184: حمل محصولات و سایر (کارخانه) | D184: =SUMIFS(database!$R:$R,database!$F:$F,calc!$C$173,database!$J:$J,calc!C184,database!$B:$B,listbox!$D$3,database!$A:$A,listbox!$B$3) -> 0 | F184: =SUMIFS(database!$S:$S,database!$F:$F,calc!$C$173,database!$J:$J,calc!C184,database!$B:$B,listbox!$D$3,database!$A:$A,listbox!$B$3) -> 0
C185: قالب سازی(کارخانه) | D185: =SUMIFS(database!$R:$R,database!$F:$F,calc!$C$173,database!$J:$J,calc!C185,database!$B:$B,listbox!$D$3,database!$A:$A,listbox!$B$3) -> 0 | F185: =SUMIFS(database!$S:$S,database!$F:$F,calc!$C$173,database!$J:$J,calc!C185,database!$B:$B,listbox!$D$3,database!$A:$A,listbox!$B$3) -> 0
C186: بتن سازی(کارخانه) | D186: =SUMIFS(database!$R:$R,database!$F:$F,calc!$C$173,database!$J:$J,calc!C186,database!$B:$B,listbox!$D$3,database!$A:$A,listbox!$B$3) -> 0 | F186: =SUMIFS(database!$S:$S,database!$F:$F,calc!$C$173,database!$J:$J,calc!C186,database!$B:$B,listbox!$D$3,database!$A:$A,listbox!$B$3) -> 0 | J186: 0
C187: بتن ریزی(کارخانه) | D187: =SUMIFS(database!$R:$R,database!$F:$F,calc!$C$173,database!$J:$J,calc!C187,database!$B:$B,listbox!$D$3,database!$A:$A,listbox!$B$3) -> 0 | F187: =SUMIFS(database!$S:$S,database!$F:$F,calc!$C$173,database!$J:$J,calc!C187,database!$B:$B,listbox!$D$3,database!$A:$A,listbox!$B$3) -> 0 | J187: 0
C188: آرماتور، میلگرد (کارخانه) | D188: =SUMIFS(database!$R:$R,database!$F:$F,calc!$C$173,database!$J:$J,calc!C188,database!$B:$B,listbox!$D$3,database!$A:$A,listbox!$B$3) -> 0 | F188: =SUMIFS(database!$S:$S,database!$F:$F,calc!$C$173,database!$J:$J,calc!C188,database!$B:$B,listbox!$D$3,database!$A:$A,listbox!$B$3) -> 0 | J188: 0
C189: کیورینگ(کارخانه) | D189: =SUMIFS(database!$R:$R,database!$F:$F,calc!$C$173,database!$J:$J,calc!C189,database!$B:$B,listbox!$D$3,database!$A:$A,listbox!$B$3) -> 0 | F189: =SUMIFS(database!$S:$S,database!$F:$F,calc!$C$173,database!$J:$J,calc!C189,database!$B:$B,listbox!$D$3,database!$A:$A,listbox!$B$3) -> 0
C190: مدیریت(کارخانه) | D190: =SUMIFS(database!$R:$R,database!$F:$F,calc!$C$173,database!$J:$J,calc!C190,database!$B:$B,listbox!$D$3,database!$A:$A,listbox!$B$3) -> 0 | F190: =SUMIFS(database!$S:$S,database!$F:$F,calc!$C$173,database!$J:$J,calc!C190,database!$B:$B,listbox!$D$3,database!$A:$A,listbox!$B$3) -> 0
C191: اداری(کارخانه) | D191: =SUMIFS(database!$R:$R,database!$F:$F,calc!$C$173,database!$J:$J,calc!C191,database!$B:$B,listbox!$D$3,database!$A:$A,listbox!$B$3) -> 0 | F191: =SUMIFS(database!$S:$S,database!$F:$F,calc!$C$173,database!$J:$J,calc!C191,database!$B:$B,listbox!$D$3,database!$A:$A,listbox!$B$3) -> 0 | J191: 0
C192: توزیع و فروش | D192: =SUMIFS(database!$R:$R,database!$F:$F,calc!$C$173,database!$J:$J,calc!C192,database!$B:$B,listbox!$D$3,database!$A:$A,listbox!$B$3) -> 0 | F192: =SUMIFS(database!$S:$S,database!$F:$F,calc!$C$173,database!$J:$J,calc!C192,database!$B:$B,listbox!$D$3,database!$A:$A,listbox!$B$3) -> 0
C193: جمع | D193: =SUBTOTAL(109,D175:D192) -> 0 | F193: =SUM(F175:F192) -> 0 | G193: =SUM(G175:G192) -> 0% | J193: =SUM(J175:J192) -> 0 | K193: =SUM(K175:K192) -> 0%
C196: تهران
C197: مرکز هزینه | D197: تعداد روز | E197: Column2 | F197: جمع پرداختی | G197: درصد(جمع پرداختی) | J197: سرانه پرداختی | K197: درصد سرانه پرداختی
C198: آشپزخانه(دفتر مرکزی) | D198: =SUMIFS(database!$R:$R,database!$F:$F,calc!$C$196,database!$J:$J,calc!C198,database!$B:$B,listbox!$D$3,database!$A:$A,listbox!$B$3) -> 0 | F198: =SUMIFS(database!$S:$S,database!$F:$F,calc!$C$196,database!$J:$J,calc!C198,database!$B:$B,listbox!$D$3,database!$A:$A,listbox!$B$3) -> 0 | G198: =IFERROR(F198/$F$206,"") -> 0% | J198: =IFERROR(F198/D28,"") ->  | K198: =IFERROR(J198/$J$206,"") -> 
C199: تدارکات(دفتر مرکزی) | D199: =SUMIFS(database!$R:$R,database!$F:$F,calc!$C$196,database!$J:$J,calc!C199,database!$B:$B,listbox!$D$3,database!$A:$A,listbox!$B$3) -> 0 | F199: =SUMIFS(database!$S:$S,database!$F:$F,calc!$C$196,database!$J:$J,calc!C199,database!$B:$B,listbox!$D$3,database!$A:$A,listbox!$B$3) -> 0 | G199: =IFERROR(F199/$F$206,"") -> 0% | J199: =IFERROR(F199/D29,"") -> 0 | K199: =IFERROR(J199/$J$206,"") -> 0%
C200: بازرگانی(دفتر مرکزی) | D200: =SUMIFS(database!$R:$R,database!$F:$F,calc!$C$196,database!$J:$J,calc!C200,database!$B:$B,listbox!$D$3,database!$A:$A,listbox!$B$3) -> 0 | F200: =SUMIFS(database!$S:$S,database!$F:$F,calc!$C$196,database!$J:$J,calc!C200,database!$B:$B,listbox!$D$3,database!$A:$A,listbox!$B$3) -> 0 | G200: 0% | K200: =IFERROR(J200/$J$206,"") -> 
C201: فنی(دفتر مرکزی) | D201: =SUMIFS(database!$R:$R,database!$F:$F,calc!$C$196,database!$J:$J,calc!C201,database!$B:$B,listbox!$D$3,database!$A:$A,listbox!$B$3) -> 0 | F201: =SUMIFS(database!$S:$S,database!$F:$F,calc!$C$196,database!$J:$J,calc!C201,database!$B:$B,listbox!$D$3,database!$A:$A,listbox!$B$3) -> 0 | G201: 0%
C202: مدیریت عامل(دفتر مرکزی) | D202: =SUMIFS(database!$R:$R,database!$F:$F,calc!$C$196,database!$J:$J,calc!C202,database!$B:$B,listbox!$D$3,database!$A:$A,listbox!$B$3) -> 1 | F202: =SUMIFS(database!$S:$S,database!$F:$F,calc!$C$196,database!$J:$J,calc!C202,database!$B:$B,listbox!$D$3,database!$A:$A,listbox!$B$3) -> 6,244,305 | G202: 100% | J202: 6,244,305 | K202: 100%
C203: هیئت مدیره(دفترمرکزی) | D203: =SUMIFS(database!$R:$R,database!$F:$F,calc!$C$196,database!$J:$J,calc!C203,database!$B:$B,listbox!$D$3,database!$A:$A,listbox!$B$3) -> 0 | F203: =SUMIFS(database!$S:$S,database!$F:$F,calc!$C$196,database!$J:$J,calc!C203,database!$B:$B,listbox!$D$3,database!$A:$A,listbox!$B$3) -> 0 | G203: 0%
C204: مالی (دفتر مرکزی) | D204: =SUMIFS(database!$R:$R,database!$F:$F,calc!$C$196,database!$J:$J,calc!C204,database!$B:$B,listbox!$D$3,database!$A:$A,listbox!$B$3) -> 0 | F204: =SUMIFS(database!$S:$S,database!$F:$F,calc!$C$196,database!$J:$J,calc!C204,database!$B:$B,listbox!$D$3,database!$A:$A,listbox!$B$3) -> 0 | G204: 0% | J204: 0 | K204: 0%
C205: اداری (دفتر مرکزی) | D205: =SUMIFS(database!$R:$R,database!$F:$F,calc!$C$196,database!$J:$J,calc!C205,database!$B:$B,listbox!$D$3,database!$A:$A,listbox!$B$3) -> 0 | F205: =SUMIFS(database!$S:$S,database!$F:$F,calc!$C$196,database!$J:$J,calc!C205,database!$B:$B,listbox!$D$3,database!$A:$A,listbox!$B$3) -> 0 | G205: 0% | J205: 0 | K205: 0%
C206: جمع | D206: =SUBTOTAL(109,D198:D205) -> 1 | F206: =SUM(F198:F205) -> 6,244,305 | G206: =SUM(G198:G205) -> 100% | J206: =SUM(J198:J205) -> 6,244,305 | K206: =SUM(K198:K205) -> 100%
C210: هزینه حقوق و دستمزد:
C212: بندرعباس
C213: مرکز هزینه | D213: درصد | E213: درصد2 | F213: جمع حقوق و مزایا | G213: درصد(جمع حقوق و مزایا) | J213: سرانه پرداختی | K213: درصد سرانه پرداختی
C214: حراست (کارخانه) | D214: 0 | E214: 0% | F214: =SUMIFS(database!$T:$T,database!$F:$F,$C$212,database!$J:$J,C214,database!$B:$B,listbox!$D$3,database!$A:$A,listbox!$B$3) -> 378,957,044 | G214: =F214/$F$232 -> 25% | J214: =IFERROR(test5[[#This Row],[جمع حقوق و مزایا]]/D5,"") -> 126,319,015 | K214: =J214/$J$232 -> 12%
C215: آشپزخانه (کارخانه) | D215: 0 | E215: 0% | F215: =SUMIFS(database!$T:$T,database!$F:$F,$C$212,database!$J:$J,C215,database!$B:$B,listbox!$D$3,database!$A:$A,listbox!$B$3) -> 79,933,626 | G215: 5% | J215: =IFERROR(test5[[#This Row],[جمع حقوق و مزایا]]/D6,"") -> 79,933,626 | K215: =J215/$J$232 -> 8%
C216: تدارکات (کارخانه) | D216: 0 | E216: 0% | F216: =SUMIFS(database!$T:$T,database!$F:$F,$C$212,database!$J:$J,C216,database!$B:$B,listbox!$D$3,database!$A:$A,listbox!$B$3) -> 0 | G216: 0% | J216: =IFERROR(test5[[#This Row],[جمع حقوق و مزایا]]/D7,"") ->  | K216: =IFERROR(J216/$J$232,"") -> 
C217: انبار (کارخانه) | D217: 0 | E217: 0% | F217: =SUMIFS(database!$T:$T,database!$F:$F,$C$212,database!$J:$J,C217,database!$B:$B,listbox!$D$3,database!$A:$A,listbox!$B$3) -> 69,198,409 | G217: 5% | J217: =IFERROR(test5[[#This Row],[جمع حقوق و مزایا]]/D8,"") -> 69,198,409 | K217: =IFERROR(J217/$J$232,"") -> 7%
C218: تاسیسات (کارخانه) | D218: 0 | E218: 0% | F218: =SUMIFS(database!$T:$T,database!$F:$F,$C$212,database!$J:$J,C218,database!$B:$B,listbox!$D$3,database!$A:$A,listbox!$B$3) -> 0 | G218: 0% | J218: =IFERROR(test5[[#This Row],[جمع حقوق و مزایا]]/D9,"") -> 
C219: فنی تولید (کارخانه) | D219: 0 | E219: 0% | F219: =SUMIFS(database!$T:$T,database!$F:$F,$C$212,database!$J:$J,C219,database!$B:$B,listbox!$D$3,database!$A:$A,listbox!$B$3) -> 152,525,315 | G219: 10% | J219: =IFERROR(test5[[#This Row],[جمع حقوق و مزایا]]/D10,"") -> 152,525,315 | K219: 14%
C220: تعمیر و نگهداری(کارخانه) | D220: 0 | E220: 0% | F220: =SUMIFS(database!$T:$T,database!$F:$F,$C$212,database!$J:$J,C220,database!$B:$B,listbox!$D$3,database!$A:$A,listbox!$B$3) -> 104,160,253 | G220: 7% | J220: =IFERROR(test5[[#This Row],[جمع حقوق و مزایا]]/D11,"") -> 104,160,253 | K220: 10%
C221: QC و کنترل کیفیت (کارخانه) | D221: 0 | E221: 0% | F221: =SUMIFS(database!$T:$T,database!$F:$F,$C$212,database!$J:$J,C221,database!$B:$B,listbox!$D$3,database!$A:$A,listbox!$B$3) -> 0 | G221: 0% | J221: =IFERROR(test5[[#This Row],[جمع حقوق و مزایا]]/D12,"") -> 
C222: حمل مواد اولیه (کارخانه) | D222: 0 | E222: 0% | F222: =SUMIFS(database!$T:$T,database!$F:$F,$C$212,database!$J:$J,C222,database!$B:$B,listbox!$D$3,database!$A:$A,listbox!$B$3) -> 100,817,386 | G222: 7% | J222: =IFERROR(test5[[#This Row],[جمع حقوق و مزایا]]/D13,"") -> 100,817,386 | K222: 10%
C223: حمل محصولات و سایر (کارخانه) | D223: 0 | E223: 0% | F223: =SUMIFS(database!$T:$T,database!$F:$F,$C$212,database!$J:$J,C223,database!$B:$B,listbox!$D$3,database!$A:$A,listbox!$B$3) -> 0 | G223: 0% | J223: =IFERROR(test5[[#This Row],[جمع حقوق و مزایا]]/D14,"") -> 
C224: قالب سازی(کارخانه) | D224: 0 | E224: 0% | F224: =SUMIFS(database!$T:$T,database!$F:$F,$C$212,database!$J:$J,C224,database!$B:$B,listbox!$D$3,database!$A:$A,listbox!$B$3) -> 0 | G224: 0% | J224: =IFERROR(test5[[#This Row],[جمع حقوق و مزایا]]/D15,"") -> 
C225: بتن سازی(کارخانه) | D225: 0 | E225: 0% | F225: =SUMIFS(database!$T:$T,database!$F:$F,$C$212,database!$J:$J,C225,database!$B:$B,listbox!$D$3,database!$A:$A,listbox!$B$3) -> 207,633,564 | G225: 14% | J225: =IFERROR(test5[[#This Row],[جمع حقوق و مزایا]]/D16,"") -> 103,816,782 | K225: 10%
C226: بتن ریزی(کارخانه) | D226: 0 | E226: 0% | F226: =SUMIFS(database!$T:$T,database!$F:$F,$C$212,database!$J:$J,C226,database!$B:$B,listbox!$D$3,database!$A:$A,listbox!$B$3) -> 215,816,275 | G226: 14% | J226: =IFERROR(test5[[#This Row],[جمع حقوق و مزایا]]/D17,"") -> 107,908,138 | K226: 10%
C227: آرماتور، میلگرد (کارخانه) | D227: 0 | E227: 0% | F227: =SUMIFS(database!$T:$T,database!$F:$F,$C$212,database!$J:$J,C227,database!$B:$B,listbox!$D$3,database!$A:$A,listbox!$B$3) -> 83,241,172 | G227: 5% | J227: =IFERROR(test5[[#This Row],[جمع حقوق و مزایا]]/D18,"") -> 83,241,172 | K227: 8%
C228: کیورینگ(کارخانه) | D228: 0 | E228: 0% | F228: =SUMIFS(database!$T:$T,database!$F:$F,$C$212,database!$J:$J,C228,database!$B:$B,listbox!$D$3,database!$A:$A,listbox!$B$3) -> 0 | G228: 0% | J228: =IFERROR(test5[[#This Row],[جمع حقوق و مزایا]]/D19,"") -> 
C229: مدیریت(کارخانه) | D229: 0 | E229: 0% | F229: =SUMIFS(database!$T:$T,database!$F:$F,$C$212,database!$J:$J,C229,database!$B:$B,listbox!$D$3,database!$A:$A,listbox!$B$3) -> 0 | G229: 0% | J229: =IFERROR(test5[[#This Row],[جمع حقوق و مزایا]]/D20,"") -> 
C230: اداری(کارخانه) | D230: 0 | E230: 0% | F230: =SUMIFS(database!$T:$T,database!$F:$F,$C$212,database!$J:$J,C230,database!$B:$B,listbox!$D$3,database!$A:$A,listbox!$B$3) -> 125,458,227 | G230: 8% | J230: =IFERROR(test5[[#This Row],[جمع حقوق و مزایا]]/D21,"") -> 125,458,227 | K230: 12%
C231: توزیع و فروش | D231: 0 | E231: 0% | F231: =SUMIFS(database!$T:$T,database!$F:$F,$C$212,database!$J:$J,C231,database!$B:$B,listbox!$D$3,database!$A:$A,listbox!$B$3) -> 0 | G231: 0% | J231: =IFERROR(test5[[#This Row],[جمع حقوق و مزایا]]/D22,"") -> 
C232: جمع | D232: =SUM(D214:D231) -> 0 | E232: =SUM(E214:E231) -> 0 | F232: =SUM(F214:F231) -> 1,517,741,271 | G232: =SUM(G214:G231) -> 100% | J232: =SUBTOTAL(9,J214:J231) -> 1,053,378,322 | K232: =SUBTOTAL(9,K214:K231) -> 100%
C235: تهران
C236: مرکز هزینه | D236: درصد | E236: درصد2 | F236: جمع حقوق و مزایا | G236: درصد(جمع حقوق و مزایا) | J236: سرانه پرداختی | K236: درصد سرانه پرداختی
... 14 more rows

Sheet Dashboard
